{"text_format":"1","workbook":"xlsx","n_sheets":5,"sheets":["Титульник","сводные данные по бюджет времен","План","Кабинеты","Лист1"],"not_rendered":{"charts":0,"images":0,"macros":1,"external_links":0,"defined_names":0,"comments":0,"pivot_tables":0},"unopened":[],"bounds":{"document_bytes":16777216,"sheet_cells":100000,"rows_first":2000,"rows_last":500,"rows_between":2000,"halvings":0,"cell_chars":16384,"cell_head_chars":4096},"cells_cut":0,"cells_raw":0,"read":"whole","date_system":"1900"}

{"sheet":"Титульник","index":0,"n_rows":33,"n_cols":45,"rows_kept":33,"cut":false,"hidden":false,"merged":[[32,27,32,31],[12,0,12,11],[28,7,29,8],[29,14,29,33],[29,34,29,61],[30,34,31,61],[31,14,31,33],[27,34,27,43],[32,34,32,36],[32,8,32,9],[32,14,32,24],[32,25,32,26],[23,20,23,61],[25,14,25,19],[21,30,21,33],[21,34,21,61],[27,44,27,47],[10,14,13,61],[23,14,23,19],[14,14,15,61],[27,27,27,31],[9,0,10,11],[17,14,18,61],[32,32,32,33],[0,0,0,11],[1,0,2,11],[4,0,5,11],[4,14,5,61],[19,14,19,18],[19,20,19,61],[6,0,7,11],[25,20,25,31],[6,14,7,61],[27,14,27,25],[20,14,20,19],[20,20,20,60],[21,14,21,27]]}
["Утверждаю"]
["Директор ОГБПОУ  \"ДМК\""]
[]
[]
["И.А.Казаченко",null,null,null,null,null,null,null,null,null,null,null,null,null,"УЧЕБНЫЙ ПЛАН"]
[]
[null,null,null,null,null,null,null,null,null,null,null,null,null,null," программы подготовки специалистов среднего звена"]
[]
[]
["Приказ № 39-у от 28.02.2025 г."]
[null,null,null,null,null,null,null,null,null,null,null,null,null,null,"Областное государственное бюджетное профессиональное образовательное учреждение    \"Димитровградский музыкальный колледж\""]
[]
["Рассмотрено Педагогическим Советом  Протокол № 04 от 26.02.2025"]
[]
[null,null,null,null,null,null,null,null,null,null,null,null,null,null,"наименование образовательного учреждения (организации)"]
[]
[]
[null,null,null,null,null,null,null,null,null,null,null,null,null,null,"по специальности среднего профессионального образования"]
[]
[null,null,null,null,null,null,null,null,null,null,null,null,null,null,"53.02.03",null,null,null,null,null,"Инструментальное исполнительство (по видам инструментов) Оркестровые духовые и ударные инструменты (флейта, гобой, кларнет, фагот, труба, валторна, тромбон (возможно туба, тенор, баритон, саксофон), ударные инструменты)"]
[null,null,null,null,null,null,null,null,null,null,null,null,null,null,"код",null,null,null,null,null,"наименование специальности"]
[null,null,null,null,null,null,null,null,null,null,null,null,null,null,"по программе углубленной подготовки",null,null,null,null,null,null,null,null,null,null,null,null,null,null,null,"   на базе",null,null,null,"основного общего образования"]
[]
[null,null,null,null,null,null,null,null,null,null,null,null,null,null,"квалификация",null,null,null,null,null,"Артист, преподаватель"]
[]
[null,null,null,null,null,null,null,null,null,null,null,null,null,null,"форма обучения",null,null,null,null,null,"Очная"]
[]
[null,null,null,null,null,null,null,null,null,null,null,null,null,null,"нормативный срок освоения ППССЗ  ",null,null,null,null,null,null,null,null,null,null,null,null,"3г 10м",null,null,null,null,null,null,"год начала подготовки по УП",null,null,null,null,null,null,null,null,null,2025]
[]
[null,null,null,null,null,null,null,null,null,null,null,null,null,null,"профиль получаемого профессионального образования",null,null,null,null,null,null,null,null,null,null,null,null,null,null,null,null,null,null,null,"Искусство и культура 53.00.00 Музыкальное искусство"]
[null,null,null,null,null,null,null,null,null,null,null,null,null,null,null,null,null,null,null,null,null,null,null,null,null,null,null,null,null,null,null,null,null,null,"при реализации программы среднего (полного) общего образования"]
[]
[null,null,null,null,null,null,null,null,null,null,null,null,null,null,"Приказ об утверждении ФГОС",null,null,null,null,null,null,null,null,null,null,"от ",null,"2021-05-17",null,null,null,null,"     № ",null,253]

{"sheet":"сводные данные по бюджет времен","index":1,"n_rows":10,"n_cols":55,"rows_kept":10,"cut":false,"hidden":false,"merged":[[2,28,2,30],[3,41,3,42],[3,28,3,30],[3,34,3,35],[3,31,3,33],[0,0,0,48],[1,0,4,0],[1,1,2,18],[1,19,2,27],[1,28,1,44],[1,45,1,50],[3,1,3,6],[4,19,4,21],[3,7,3,12],[3,13,3,18],[3,19,3,21],[3,22,3,24],[3,25,3,27],[4,22,4,24],[4,1,4,3],[4,4,4,6],[1,54,3,56],[2,48,3,50],[4,51,4,53],[4,54,4,56],[4,36,4,37],[4,38,4,40],[4,41,4,42],[4,43,4,44],[4,45,4,47],[4,48,4,50],[1,51,3,53],[3,36,3,37],[2,45,3,47],[2,38,2,44],[3,43,3,44],[3,38,3,40],[2,31,2,37],[5,54,5,56],[5,48,5,50],[5,51,5,53],[5,25,5,27],[5,28,5,30],[5,31,5,33],[5,45,5,47],[5,43,5,44],[5,38,5,40],[5,36,5,37],[5,41,5,42],[6,16,6,18],[7,36,7,37],[6,13,6,15],[7,22,7,24],[7,25,7,27],[7,28,7,30],[7,48,7,50],[7,51,7,53],[7,38,7,40],[7,41,7,42],[7,43,7,44],[7,19,7,21],[7,16,7,18],[7,13,7,15],[6,54,6,56],[6,48,6,50],[6,51,6,53],[6,25,6,27],[6,28,6,30],[6,43,6,44],[6,45,6,47],[7,31,7,33],[7,34,7,35],[7,54,7,56],[7,45,7,47],[8,1,8,3],[8,4,8,6],[8,7,8,9],[8,10,8,12],[8,13,8,15],[8,16,8,18],[8,19,8,21],[8,38,8,40],[8,25,8,27],[8,28,8,30],[8,22,8,24],[8,34,8,35],[8,36,8,37],[9,1,9,3],[9,4,9,6],[9,7,9,9],[9,10,9,12],[9,22,9,24],[9,19,9,21],[9,16,9,18],[9,28,9,30],[9,31,9,33],[9,13,9,15],[9,34,9,35],[9,48,9,50],[9,51,9,53],[9,54,9,56],[9,38,9,40],[9,41,9,42],[9,43,9,44],[9,45,9,47],[6,19,6,21],[8,45,8,47],[8,43,8,44],[8,41,8,42],[8,31,8,33],[9,36,9,37],[9,25,9,27],[6,41,6,42],[6,38,6,40],[6,36,6,37],[6,34,6,35],[6,31,6,33],[6,22,6,24],[8,54,8,56],[8,48,8,50],[8,51,8,53],[5,4,5,6],[4,7,4,9],[4,10,4,12],[4,13,4,15],[7,4,7,6],[7,1,7,3],[7,10,7,12],[7,7,7,9],[6,10,6,12],[6,7,6,9],[6,4,6,6],[6,1,6,3],[5,1,5,3],[5,22,5,24],[5,19,5,21],[5,7,5,9],[4,31,4,33],[4,34,4,35],[5,13,5,15],[5,34,5,35],[4,25,4,27],[4,16,4,18],[4,28,4,30],[5,16,5,18],[5,10,5,12]]}
["2 Сводные данные по бюджету времени"]
["Курс","Обучение по дисциплинам и междисциплинарным курсам",null,null,null,null,null,null,null,null,null,null,null,null,null,null,null,null,null,"Промежуточная аттестация",null,null,null,null,null,null,null,null,"Практики",null,null,null,null,null,null,null,null,null,null,null,null,null,null,null,null,"ГИА",null,null,null,null,null,"Каникулы",null,null,"Всего"]
[null,null,null,null,null,null,null,null,null,null,null,null,null,null,null,null,null,null,null,null,null,null,null,null,null,null,null,null,"Учебная практика",null,null,"Производственная практика (по профилю специальности)",null,null,null,null,null,null,"Производственная практика (преддипломная)",null,null,null,null,null,null,"Подго-\r\nтовка",null,null,"Прове-\r\nдение"]
[null,"Всего",null,null,null,null,null,"1 сем",null,null,null,null,null,"2 сем",null,null,null,null,null,"Всего",null,null,"1 сем",null,null,"2 сем",null,null,"Всего",null,null,"Всего",null,null,"1 сем",null,"2 сем",null,"Всего",null,null,"1 сем",null,"2 сем"]
[null,"нед.",null,null,"час.",null,null,"нед.",null,null,"час.",null,null,"нед.",null,null,"час.",null,null,"нед.",null,null,"нед.",null,null,"нед.",null,null,"нед.",null,null,"нед.",null,null,"нед.",null,"нед.",null,"нед.",null,null,"нед.",null,"нед.",null,"нед.",null,null,"нед.",null,null,"нед.",null,null,"нед."]
["I","36 ",null,null,"1947/1296",null,null,"16 ",null,null,"866/576",null,null,"20 ",null,null,"1081/720",null,null,"4 ",null,null,"2 ",null,null,"2 ",null,null,null,null,null,"1 ",null,null,null,null,"1 ",null,null,null,null,null,null,null,null,null,null,null,null,null,null,"2 ",null,null,"43 "]
["II","36 ",null,null,"1934/1296",null,null,"16 ",null,null,"853/576",null,null,"20 ",null,null,"1081/720",null,null,"4 ",null,null,"2 ",null,null,"2 ",null,null,null,null,null,"2 ",null,null,null,null,"2 ",null,null,null,null,null,null,null,null,null,null,null,null,null,null,"11 ",null,null,"53 "]
["III","36 ",null,null,"1953/1296",null,null,"16 ",null,null,"860/576",null,null,"20 ",null,null,"1093/720",null,null,"4 ",null,null,"2 ",null,null,"2 ",null,null,null,null,null,"2 ",null,null,null,null,"2 ",null,null,null,null,null,null,null,null,null,null,null,null,null,null,"10 ",null,null,"52 "]
["IV","35 ",null,null,"1888/1260",null,null,"16 ",null,null,"862/576",null,null,"19 ",null,null,"1026/684",null,null,"1 ",null,null,"1 ",null,null,null,null,null,null,null,null,null,null,null,null,null,null,null,"1 ",null,null,"1 ",null,null,null,"1 ",null,null,"3 ",null,null,"10 ",null,null,"51 "]
["Всего","143 ",null,null,"7722/5148",null,null,null,null,null,"3441/2304",null,null,null,null,null,"4281/2844",null,null,"13 ",null,null,null,null,null,null,null,null,19,null,null,"5 ",null,null,null,null,null,null,"1 ",null,null,null,null,null,null,"1 ",null,null,"3 ",null,null,"33 ",null,null,"199 "]

{"sheet":"План","index":2,"n_rows":80,"n_cols":135,"rows_kept":80,"cut":false,"hidden":false,"merged":[[83,63,83,69],[83,70,83,76],[83,21,83,27],[83,28,83,34],[83,35,83,41],[83,42,83,48],[83,49,83,55],[83,56,83,62],[81,63,81,69],[81,70,81,76],[82,21,82,27],[82,28,82,34],[82,35,82,41],[82,42,82,48],[82,49,82,55],[82,56,82,62],[82,63,82,69],[82,70,82,76],[81,21,81,27],[81,28,81,34],[81,35,81,41],[81,42,81,48],[81,49,81,55],[81,56,81,62],[4,133,5,133],[4,134,5,134],[5,25,5,25],[5,26,5,26],[5,32,5,32],[5,33,5,33],[4,125,5,125],[4,126,5,126],[4,127,5,127],[4,114,4,117],[5,114,5,114],[5,115,5,115],[5,116,5,116],[5,117,5,117],[4,104,5,104],[4,105,5,105],[4,106,5,106],[4,107,4,110],[5,107,5,107],[5,108,5,108],[5,109,5,109],[5,110,5,110],[4,97,5,97],[4,111,5,111],[78,104,78,110],[78,111,78,117],[79,76,79,82],[77,132,79,134],[78,1,78,19],[77,90,77,96],[77,97,77,103],[77,104,77,110],[77,111,77,117],[77,118,77,124],[77,125,77,131],[77,76,77,82],[77,83,77,89],[79,83,79,89],[79,90,79,96],[79,125,79,131],[79,97,79,103],[79,104,79,110],[79,111,79,117],[79,118,79,124],[78,118,78,124],[78,125,78,131],[77,0,79,0],[77,1,77,19],[75,125,75,127],[75,129,75,130],[75,104,75,106],[75,108,75,109],[75,111,75,113],[75,115,75,116],[75,118,75,120],[75,122,75,123],[75,83,75,85],[75,87,75,88],[75,90,75,92],[75,94,75,95],[75,97,75,99],[75,101,75,102],[75,73,75,74],[75,76,75,78],[75,80,75,81],[79,1,79,19],[78,76,78,82],[78,83,78,89],[78,90,78,96],[78,97,78,103],[74,125,74,127],[74,129,74,130],[75,3,75,15],[75,17,75,19],[74,104,74,106],[74,108,74,109],[74,111,74,113],[74,115,74,116],[74,118,74,120],[74,122,74,123],[74,83,74,85],[74,87,74,88],[74,90,74,92],[74,94,74,95],[74,3,74,15],[74,17,74,19],[74,97,74,99],[74,101,74,102],[74,73,74,74],[74,76,74,78],[74,80,74,81],[73,104,73,106],[73,108,73,109],[73,111,73,113],[73,115,73,116],[73,118,73,120],[73,122,73,123],[73,83,73,85],[73,87,73,88],[73,90,73,92],[73,94,73,95],[73,97,73,99],[73,101,73,102],[72,125,72,127],[72,129,72,130],[73,3,73,15],[73,17,73,19],[72,104,72,106],[72,108,72,109],[72,111,72,113],[72,115,72,116],[72,118,72,120],[72,122,72,123],[72,83,72,85],[72,87,72,88],[72,90,72,92],[72,94,72,95],[72,97,72,99],[72,101,72,102],[73,73,73,74],[73,76,73,78],[73,80,73,81],[73,125,73,127],[73,129,73,130],[72,3,72,15],[72,17,72,19],[72,73,72,74],[71,104,71,106],[71,108,71,110],[71,111,71,113],[71,115,71,117],[71,118,71,120],[71,122,71,124],[71,83,71,85],[71,87,71,89],[71,90,71,92],[71,94,71,96],[71,97,71,99],[71,101,71,103],[72,76,72,78],[72,80,72,81],[67,125,67,126],[67,129,67,131],[71,3,71,15],[71,17,71,19],[67,104,67,105],[67,108,67,110],[67,111,67,112],[67,115,67,117],[67,118,67,119],[67,122,67,124],[67,83,67,84],[67,87,67,89],[67,90,67,91],[67,94,67,96],[67,97,67,98],[67,101,67,103],[71,76,71,78],[71,80,71,82],[71,125,71,127],[71,129,71,131],[68,17,68,19],[69,17,69,19],[4,112,5,112],[4,113,5,113],[67,3,67,11],[67,17,67,19],[67,20,67,21],[67,27,67,28],[67,76,67,77],[67,80,67,82],[67,34,67,35],[67,41,67,42],[4,98,5,98],[4,99,5,99],[4,100,4,103],[5,100,5,100],[5,101,5,101],[5,102,5,102],[5,103,5,103],[4,92,5,92],[4,93,4,96],[5,93,5,93],[5,94,5,94],[5,95,5,95],[5,96,5,96],[4,91,5,91],[4,128,4,131],[5,128,5,128],[5,129,5,129],[5,130,5,130],[5,131,5,131],[4,118,5,118],[4,119,5,119],[4,120,5,120],[4,121,4,124],[5,121,5,121],[5,122,5,122],[5,123,5,123],[5,124,5,124],[4,65,4,68],[5,67,5,67],[5,68,5,68],[4,69,5,69],[4,70,5,70],[4,62,5,62],[4,63,5,63],[5,74,5,74],[5,75,5,75],[5,88,5,88],[5,89,5,89],[4,71,5,71],[5,39,5,39],[5,40,5,40],[4,41,5,41],[4,42,5,42],[4,43,5,43],[4,44,4,47],[5,46,5,46],[5,47,5,47],[4,55,5,55],[4,56,5,56],[4,57,5,57],[4,58,4,61],[4,78,5,78],[4,79,4,82],[5,81,5,81],[5,82,5,82],[5,60,5,60],[5,61,5,61],[4,76,5,76],[4,77,5,77],[4,64,5,64],[3,125,3,131],[4,16,5,16],[4,17,5,17],[4,18,5,18],[4,19,5,19],[4,20,5,20],[4,21,5,21],[4,22,5,22],[4,23,4,26],[3,97,3,103],[3,104,3,110],[3,111,3,117],[3,62,3,68],[3,69,3,75],[3,76,3,82],[3,83,3,89],[4,50,5,50],[4,51,4,54],[5,53,5,53],[5,54,5,54],[4,83,5,83],[4,84,5,84],[4,85,5,85],[4,86,4,89],[0,20,0,131],[2,20,2,26],[2,27,2,33],[4,34,5,34],[2,111,2,117],[2,62,2,68],[2,69,2,75],[2,76,2,82],[2,83,2,89],[4,48,5,48],[4,49,5,49],[4,36,5,36],[4,37,4,40],[2,125,2,131],[3,20,3,26],[3,27,3,33],[3,34,3,40],[3,41,3,47],[3,48,3,54],[3,55,3,61],[3,90,3,96],[3,118,3,124],[4,90,5,90],[4,72,4,75],[0,0,5,0],[0,1,5,1],[0,3,1,9],[0,10,1,19],[2,15,2,19],[2,8,5,8],[2,9,5,9],[2,11,5,11],[2,13,5,13],[2,3,5,3],[2,4,5,4],[2,5,5,5],[2,6,5,6],[2,7,5,7],[3,15,5,15],[3,16,3,19],[0,2,5,2],[70,17,70,19],[0,133,3,134],[1,20,1,33],[1,34,1,47],[1,48,1,61],[1,62,1,75],[2,55,2,61],[1,76,1,89],[1,90,1,103],[1,104,1,117],[2,90,2,96],[0,132,5,132],[4,27,5,27],[4,28,5,28],[4,29,5,29],[4,30,4,33],[1,118,1,131],[2,41,2,47],[2,48,2,54],[2,118,2,124],[2,34,2,40],[2,97,2,103],[2,104,2,110],[4,35,5,35]]}
["Индекс","Наименование циклов, разделов,\r\nдисциплин, профессиональных модулей, МДК, практик","Групповые, мелкогрупповые, индивидуальные формы занятий","Формы промежуточной аттестации",null,null,null,null,null,null,"Учебная нагрузка обучающихся, ч.",null,null,null,null,null,null,null,null,null,"Распределение по курсам и семестрам",null,null,null,null,null,null,null,null,null,null,null,null,null,null,null,null,null,null,null,null,null,null,null,null,null,null,null,null,null,null,null,null,null,null,null,null,null,null,null,null,null,null,null,null,null,null,null,null,null,null,null,null,null,null,null,null,null,null,null,null,null,null,null,null,null,null,null,null,null,null,null,null,null,null,null,null,null,null,null,null,null,null,null,null,null,null,null,null,null,null,null,null,null,null,null,null,null,null,null,null,null,null,null,null,null,null,null,null,null,null,null,"ЦМК","Максимальная учебная нагрузка"]
[null,null,null,null,null,null,null,null,null,null,null,null,null,null,null,null,null,null,null,null,"Курс 1",null,null,null,null,null,null,null,null,null,null,null,null,null,"Курс 2",null,null,null,null,null,null,null,null,null,null,null,null,null,"Курс 3",null,null,null,null,null,null,null,null,null,null,null,null,null,"Курс 4",null,null,null,null,null,null,null,null,null,null,null,null,null,"Курс 5",null,null,null,null,null,null,null,null,null,null,null,null,null,"Курс 6",null,null,null,null,null,null,null,null,null,null,null,null,null,"Курс 7",null,null,null,null,null,null,null,null,null,null,null,null,null,"Курс 8"]
[null,null,null,"Экзамены","Зачеты","Диффер. зачеты","Курсовые проекты (работы)","Итоговые письм. КР","Домашние КР","Другие формы контроля",null,"Максимальная",null,"Самостоятельная",null,"Обязательная",null,null,null,null,"Семестр 1",null,null,null,null,null,null,"Семестр 2",null,null,null,null,null,null,"Семестр 3",null,null,null,null,null,null,"Семестр 4",null,null,null,null,null,null,"Семестр 5",null,null,null,null,null,null,"Семестр 6",null,null,null,null,null,null,"Семестр 7",null,null,null,null,null,null,"Семестр 8",null,null,null,null,null,null,"Семестр 9",null,null,null,null,null,null,"Семестр A",null,null,null,null,null,null,"Семестр B",null,null,null,null,null,null,"Семестр C",null,null,null,null,null,null,"Семестр D",null,null,null,null,null,null,"Семестр E",null,null,null,null,null,null,"Семестр F",null,null,null,null,null,null,"Семестр G"]
[null,null,null,null,null,null,null,null,null,null,null,null,null,null,null,"Всего","в том числе",null,null,null,"16  нед",null,null,null,null,null,null,"20  нед",null,null,null,null,null,null,"16  нед",null,null,null,null,null,null,"20  нед",null,null,null,null,null,null,"16  нед",null,null,null,null,null,null,"20  нед",null,null,null,null,null,null,"16  нед",null,null,null,null,null,null,"19  нед",null,null,null,null,null,null," нед",null,null,null,null,null,null," нед",null,null,null,null,null,null," нед",null,null,null,null,null,null," нед",null,null,null,null,null,null," нед",null,null,null,null,null,null," нед",null,null,null,null,null,null," нед",null,null,null,null,null,null," нед"]
[null,null,null,null,null,null,null,null,null,null,null,null,null,null,null,null,"Теор. обучение","Лаб. и пр. занятия",null,"Курс. проект.","Максим.","Самост.","Всего","в том числе",null,null,null,"Максим.","Самост.","Всего","в том числе",null,null,null,"Максим.","Самост.","Всего","в том числе",null,null,null,"Максим.","Самост.","Всего","в том числе",null,null,null,"Максим.","Самост.","Всего","в том числе",null,null,null,"Максим.","Самост.","Всего","в том числе",null,null,null,"Максим.","Самост.","Всего","в том числе",null,null,null,"Максим.","Самост.","Всего","в том числе",null,null,null,"Максим.","Самост.","Всего","в том числе",null,null,null,"Максим.","Самост.","Всего","в том числе",null,null,null,"Максим.","Самост.","Всего","в том числе",null,null,null,"Максим.","Самост.","Всего","в том числе",null,null,null,"Максим.","Самост.","Всего","в том числе",null,null,null,"Максим.","Самост.","Всего","в том числе",null,null,null,"Максим.","Самост.","Всего","в том числе",null,null,null,"Максим.","Самост.","Всего","в том числе",null,null,null,null,"Обяз. часть","Вар. часть"]
[null,null,null,null,null,null,null,null,null,null,null,null,null,null,null,null,null,null,null,null,null,null,null,"Теор. обучение","Лаб. и пр. занятия","Лаб. занятия","Курс. проект.",null,null,null,"Теор. обучение","Лаб. и пр. занятия","Лаб. занятия","Курс. проект.",null,null,null,"Теор. обучение","Лаб. и пр. занятия","Лаб. занятия","Курс. проект.",null,null,null,"Теор. обучение","Лаб. и пр. занятия","Лаб. занятия","Курс. проект.",null,null,null,"Теор. обучение","Лаб. и пр. занятия","Лаб. занятия","Курс. проект.",null,null,null,"Теор. обучение","Лаб. и пр. занятия","Лаб. занятия","Курс. проект.",null,null,null,"Теор. обучение","Лаб. и пр. занятия","Лаб. занятия","Курс. проект.",null,null,null,"Теор. обучение","Лаб. и пр. занятия","Лаб. занятия","Курс. проект.",null,null,null,"Теор. обучение","Лаб. и пр. занятия","Лаб. занятия","Курс. проект.",null,null,null,"Теор. обучение","Лаб. и пр. занятия","Лаб. занятия","Курс. проект.",null,null,null,"Теор. обучение","Лаб. и пр. занятия","Лаб. занятия","Курс. проект.",null,null,null,"Теор. обучение","Лаб. и пр. занятия","Лаб. занятия","Курс. проект.",null,null,null,"Теор. обучение","Лаб. и пр. занятия","Лаб. занятия","Курс. проект.",null,null,null,"Теор. обучение","Лаб. и пр. занятия","Лаб. занятия","Курс. проект.",null,null,null,"Теор. обучение","Лаб. и пр. занятия","Лаб. занятия","Курс. проект.",null,null,null,"Теор. обучение","Лаб. и пр. занятия","Лаб. занятия","Курс. проект."]
["1","2",3,4,5,6,"6","7","8",7,"10",8,"12",9,"14",10,11,12,"18",13,"20",14,15,16,17,"25",18,"27",19,20,21,22,"32",23,"34",24,25,26,27,"39",28,"41",29,30,31,32,"46",33,"48",34,35,36,37,"53",38,"55",39,40,41,42,"60",43,"62",44,45,46,47,"67",48,"69",49,50,51,52,"74",53,"76","77","78","79","80","81","82","83","84","85","86","87","88","89","90","91","92","93","94","95","96","97","98","99","100","101","102","103","104","105","106","107","108","109","110","111","112","113","114","115","116","117","118","119","120","121","122","123","124","125","126","127","128","129","130","131",132,54,55]
[null,"час/нед",null,null,null,null,null,null,null,null,null,null,null,null,null,null,null,null,null,null,"31,5",null,{"$f":"W9/16","v":21},null,null,null,null,"31,5",null,{"$f":"AD9/20","v":21},null,null,null,null,"22,5",null,{"$f":"AK9/16","v":15},null,null,null,null,"22,5",null,{"$f":"AR9/20","v":15},null,null,null,null,"4,5",null,{"$f":"AY9/16","v":3},null,null,null,null,"4,5",null,{"$f":"BF9/20","v":3},null,null,null,null,null,null,{"$f":"BM9/16","v":0},null,null,null,null,null,null,{"$f":"BT9/19","v":0},null,null,null,null,"NaN",null,"NaN",null,null,null,null,"NaN",null,"NaN",null,null,null,null,"NaN",null,"NaN",null,null,null,null,"NaN",null,"NaN",null,null,null,null,"NaN",null,"NaN",null,null,null,null,"NaN",null,"NaN",null,null,null,null,"NaN",null,"NaN",null,null,null,null,"NaN",null,"NaN"]
["ОУЦ.00","Общеобразовательный учебный цикл",null,3,4,6,null,null,null,14,null,2106,0,702,0,1404,1276,128,null,null,504,168,336,320,16,null,0,null,210,420,380,40,null,0,null,120,240,208,32,null,0,null,150,300,260,40,null,0,null,24,48,48,0,null,0,null,30,60,60,0,null,0,null,0,0,0,0,null,0,null,0,0,0,0,null,0,null,null,null,null,null,null,null,null,null,null,null,null,null,null,null,null,null,null,null,null,null,null,null,null,null,null,null,null,null,null,null,null,null,null,null,null,null,null,null,null,null,null,null,null,null,null,null,null,null,null,null,null,null,null,null,null,1404,1404]
["ОУП.00","Обязательный учебные предметы",null,3,4,6,{"$error":"#REF!"},{"$error":"#REF!"},{"$error":"#REF!"},14,null,1134,0,378,0,756,628,128,null,null,264,88,176,160,16,0,0,330,110,220,180,40,0,0,240,80,160,128,32,0,0,300,100,200,160,40,0,0,0,0,0,0,0,0,0,0,0,0,0,0,0,0,0,0,0,0,0,0,0,0,0,0,0,0,0,0,0,0,0,0,0,0,0,0,0,0,0,0,0,0,0,0,0,0,0,0,0,0,0,0,0,0,0,0,0,0,0,0,0,0,0,0,0,0,0,0,0,0,0,0,0,0,0,0,0,0,0,0,0,0,0,0,756,756]
["ОУП.01"," Русский язык","гр",4,null,null,null,null,null,123,null,{"$f":"N11+P11","v":108},null,{"$f":"V11+AC11+AJ11+AQ11+AX11+BE11+BL11+BS11","v":36},null,{"$f":"W11+AD11+AK11+AR11+AY11+BF11+BM11+BT11","v":72},72,0,null,null,24,8,16,16,null,null,null,30,10,20,20,null,null,null,24,8,16,16,null,null,null,30,10,20,20,null,null,null,null,null,null,null,null,null,null,null,null,null,null,null,null,null,null,null,null,null,null,null,null,null,null,null,null,null,null,null,null,null,null,null,null,null,null,null,null,null,null,null,null,null,null,null,null,null,null,null,null,null,null,null,null,null,null,null,null,null,null,null,null,null,null,null,null,null,null,null,null,null,null,null,null,null,null,null,null,null,null,null,null,null,null,null,128,128]
["ОУП.02"," Литература","гр",4,null,null,null,null,null,123,null,{"$f":"N12+P12","v":132},null,{"$f":"V12+AC12+AJ12+AQ12+AX12+BE12+BL12+BS12","v":44},null,88,88,0,null,null,48,16,32,32,null,null,null,30,10,20,20,null,null,null,48,8,16,16,null,null,null,60,10,20,20,null,null,null,null,null,null,null,null,null,null,null,null,null,null,null,null,null,null,null,null,null,null,null,null,null,null,null,null,null,null,null,null,null,null,null,null,null,null,null,null,null,null,null,null,null,null,null,null,null,null,null,null,null,null,null,null,null,null,null,null,null,null,null,null,null,null,null,null,null,null,null,null,null,null,null,null,null,null,null,null,null,null,null,null,null,null,null,40,40]
["ОУП.03","Родная литература","гр",null,null,null,null,null,null,4,null,54,null,18,null,36,36,null,null,null,null,null,null,null,null,null,null,null,null,null,null,null,null,null,null,8,16,16,null,null,null,null,10,20,20,null,null,null,null,null,null,null,null,null,null,null,null,null,null,null,null,null,null,null,null,null,null,null,null,null,null,null,null,null,null,null,null,null,null,null,null,null,null,null,null,null,null,null,null,null,null,null,null,null,null,null,null,null,null,null,null,null,null,null,null,null,null,null,null,null,null,null,null,null,null,null,null,null,null,null,null,null,null,null,null,null,null,null,null,null,null,null,68,68]
["ОУП.04","Иностранный язык","мг",null,null,34,null,null,null,12,null,{"$f":"N14+P14","v":192},null,{"$f":"V14+AC14+AJ14+AQ14+AX14+BE14+BL14+BS14","v":64},null,{"$f":"W14+AD14+AK14+AR14+AY14+BF14+BM14+BT14","v":128},{"$f":"X14+AE14+AL14+AS14+AZ14+BG14+BN14+BU14","v":0},{"$f":"Y14+AF14+AM14+AT14+BA14+BH14+BO14+BV14","v":128},null,null,24,8,16,null,16,null,null,60,20,40,null,40,null,null,48,16,32,null,32,null,null,60,20,40,null,40,null,null,null,null,null,null,null,null,null,null,null,null,null,null,null,null,null,null,null,null,null,null,null,null,null,null,null,null,null,null,null,null,null,null,null,null,null,null,null,null,null,null,null,null,null,null,null,null,null,null,null,null,null,null,null,null,null,null,null,null,null,null,null,null,null,null,null,null,null,null,null,null,null,null,null,null,null,null,null,null,null,null,null,null,null,null,72,72]
["ОУП.05","Обществознание","гр",null,null,4,null,null,null,null,null,60,null,20,null,40,40,0,null,null,null,null,null,null,null,null,null,null,null,null,null,null,null,null,null,null,null,null,null,null,null,60,20,40,40,null,null,null,null,null,null,null,null,null,null,null,null,null,null,null,null,null,null,null,null,null,null,null,null,null,null,null,null,null,null,null,null,null,null,null,null,null,null,null,null,null,null,null,null,null,null,null,null,null,null,null,null,null,null,null,null,null,null,null,null,null,null,null,null,null,null,null,null,null,null,null,null,null,null,null,null,null,null,null,null,null,null,null,null,null,null,null,36,36]
["ОУП.06","Математика","мг",3,null,null,null,null,null,12,null,102,null,34,null,{"$f":"W16+AD16+AK16+AR16+AY16+BF16+BM16+BT16","v":68},68,0,null,null,24,8,16,16,null,null,null,30,10,20,20,null,null,null,48,16,32,32,null,null,null,null,null,null,null,null,null,null,null,null,null,null,null,null,null,null,null,null,null,null,null,null,null,null,null,null,null,null,null,null,null,null,null,null,null,null,null,null,null,null,null,null,null,null,null,null,null,null,null,null,null,null,null,null,null,null,null,null,null,null,null,null,null,null,null,null,null,null,null,null,null,null,null,null,null,null,null,null,null,null,null,null,null,null,null,null,null,null,null,null,null,null,144,144]
["ОУП.07","Естествознание","гр",null,null,2,null,null,null,null,null,{"$f":"N17+P17","v":108},null,{"$f":"V17+AC17+AJ17+AQ17+AX17+BE17+BL17+BS17","v":36},null,72,72,0,null,null,48,16,32,32,null,null,null,60,20,40,40,null,null,null,null,null,null,null,null,null,null,null,null,null,null,null,null,null,null,null,null,null,null,null,null,null,null,null,null,null,null,null,null,null,null,null,null,null,null,null,null,null,null,null,null,null,null,null,null,null,null,null,null,null,null,null,null,null,null,null,null,null,null,null,null,null,null,null,null,null,null,null,null,null,null,null,null,null,null,null,null,null,null,null,null,null,null,null,null,null,null,null,null,null,null,null,null,null,null,null,null,null,72,72]
["ОУП.08","Астрономия","гр",null,null,4,null,null,null,3,null,{"$f":"N18+P18","v":54},null,{"$f":"V18+AC18+AJ18+AQ18+AX18+BE18+BL18+BS18","v":18},null,36,36,0,null,null,null,null,null,null,null,null,null,null,null,null,null,null,null,null,24,8,16,16,null,null,null,30,10,20,20,null,null,null,null,null,null,null,null,null,null,null,null,null,null,null,null,null,null,null,null,null,null,null,null,null,null,null,null,null,null,null,null,null,null,null,null,null,null,null,null,null,null,null,null,null,null,null,null,null,null,null,null,null,null,null,null,null,null,null,null,null,null,null,null,null,null,null,null,null,null,null,null,null,null,null,null,null,null,null,null,null,null,null,null,null,null,null,72,72]
["ОУП.09","Основы безопасности и защита Родины","гр",null,null,2,null,null,null,1,null,108,null,36,null,72,72,0,null,null,48,16,32,32,null,null,null,60,20,40,40,null,null,null,null,null,null,null,null,null,null,null,null,null,null,null,null,null,null,null,null,null,null,null,null,null,null,null,null,null,null,null,null,null,null,null,null,null,null,null,null,null,null,null,null,null,null,null,null,null,null,null,null,null,null,null,null,null,null,null,null,null,null,null,null,null,null,null,null,null,null,null,null,null,null,null,null,null,null,null,null,null,null,null,null,null,null,null,null,null,null,null,null,null,null,null,null,null,null,null,null,null,124,124]
["ОУП.10","Физическая культура","гр",null,null,null,null,null,null,null,null,216,null,72,null,144,144,0,null,null,48,16,32,32,null,null,null,60,20,40,40,null,null,null,48,16,32,32,null,null,null,60,20,40,40,null,null,null,null,null,null,null,null,null,null,null,null,null,null,null,null,null,null,null,null,null,null,null,null,null,null,null,null,null,null,null,null,null,null,null,null,null,null,null,null,null,null,null,null,null,null,null,null,null,null,null,null,null,null,null,null,null,null,null,null,null,null,null,null,null,null,null,null,null,null,null,null,null,null,null,null,null,null,null,null,null,null,null,null,null,null,null,144]
["ПУП.00","Профильные учебные предметы",null,8,null,1,{"$f":"LEN(#REF!)+LEN(#REF!)+LEN(G26)+LEN(#REF!)+LEN(#REF!)+LEN(#REF!)+LEN(G27)","v":{"$error":"#REF!"}},{"$f":"LEN(#REF!)+LEN(#REF!)+LEN(H26)+LEN(#REF!)+LEN(#REF!)+LEN(#REF!)+LEN(H27)","v":{"$error":"#REF!"}},{"$f":"LEN(#REF!)+LEN(#REF!)+LEN(I26)+LEN(#REF!)+LEN(#REF!)+LEN(#REF!)+LEN(I27)","v":{"$error":"#REF!"}},7,null,972,{"$f":"SUM(M21:M27)","v":0},324,{"$f":"SUM(O21:O27)","v":0},648,648,{"$f":"SUM(R21:R27)","v":0},null,null,240,80,160,160,{"$f":"SUM(Y21:Y27)","v":0},{"$f":"SUM(Z21:Z27)","v":0},{"$f":"SUM(AA21:AA27)","v":0},{"$f":"SUM(AB21:AB27)","v":360},100,200,200,{"$f":"SUM(AF21:AF27)","v":0},{"$f":"SUM(AG21:AG27)","v":0},{"$f":"SUM(AH21:AH27)","v":0},{"$f":"SUM(AI21:AI27)","v":192},40,80,80,{"$f":"SUM(AM21:AM27)","v":0},{"$f":"SUM(AN21:AN27)","v":0},{"$f":"SUM(AO21:AO27)","v":0},{"$f":"SUM(AP21:AP27)","v":240},50,100,100,{"$f":"SUM(AT21:AT27)","v":0},0,0,72,24,48,48,0,0,0,90,30,60,60,0,0,0,0,0,0,0,0,0,0,0,0,0,0,0,0,0,0,{"$f":"SUM(BZ21:BZ27)","v":0},0,0,0,0,0,0,0,0,0,0,0,0,0,0,0,0,0,0,0,0,0,0,0,0,0,0,0,0,0,0,0,{"$f":"SUM(DF21:DF27)","v":0},0,0,0,0,0,0,0,0,0,0,0,0,0,0,0,0,0,0,0,0,0,0,648,{"$f":"SUM(ED21:ED27)","v":0}]
["ПУП.01","История мировой культуры","гр",null,null,4,null,null,null,123,null,{"$f":"N22+P22","v":216},null,{"$f":"V22+AC22+AJ22+AQ22+AX22+BE22+BL22+BS22","v":72},null,{"$f":"W22+AD22+AK22+AR22+AY22+BF22+BM22+BT22","v":144},144,0,null,null,48,16,32,32,null,null,null,60,20,40,40,null,null,null,48,16,32,32,null,null,null,60,20,40,40,null,null,null,null,null,null,null,null,null,null,null,null,null,null,null,null,null,null,null,null,null,null,null,null,null,null,null,null,null,null,null,null,null,null,null,null,null,null,null,null,null,null,null,null,null,null,null,null,null,null,null,null,null,null,null,null,null,null,null,null,null,null,null,null,null,null,null,null,null,null,null,null,null,null,null,null,null,null,null,null,null,null,null,null,null,null,null,144]
["ПУП.02","История","гр",2,null,null,null,null,null,1,null,{"$f":"N23+P23","v":216},null,{"$f":"V23+AC23+AJ23+AQ23+AX23+BE23+BL23+BS23","v":72},null,{"$f":"W23+AD23+AK23+AR23+AY23+BF23+BM23+BT23","v":144},{"$f":"X23+AE23+AL23+AS23+AZ23+BG23+BN23+BU23","v":144},{"$f":"Y23+AF23+AM23+AT23+BA23+BH23+BO23+BV23","v":0},null,null,96,32,64,64,null,null,null,120,40,80,80,null,null,null,null,null,null,null,null,null,null,null,null,null,null,null,null,null,null,null,null,null,null,null,null,null,null,null,null,null,null,null,null,null,null,null,null,null,null,null,null,null,null,null,null,null,null,null,null,null,null,null,null,null,null,null,null,null,null,null,null,null,null,null,null,null,null,null,null,null,null,null,null,null,null,null,null,null,null,null,null,null,null,null,null,null,null,null,null,null,null,null,null,null,null,null,null,null,null,null,null,null,144]
["ПУП.03","Народная музыкальная культура","гр",2,null,null,null,null,null,1,null,{"$f":"N24+P24","v":54},null,{"$f":"V24+AC24+AJ24+AQ24+AX24+BE24+BL24+BS24","v":18},null,{"$f":"W24+AD24+AK24+AR24+AY24+BF24+BM24+BT24","v":36},36,0,null,null,24,8,16,16,null,null,null,30,10,20,20,null,null,null,null,null,null,null,null,null,null,null,null,null,null,null,null,null,null,null,null,null,null,null,null,null,null,null,null,null,null,null,null,null,null,null,null,null,null,null,null,null,null,null,null,null,null,null,null,null,null,null,null,null,null,null,null,null,null,null,null,null,null,null,null,null,null,null,null,null,null,null,null,null,null,null,null,null,null,null,null,null,null,null,null,null,null,null,null,null,null,null,null,null,null,null,null,null,null,null,null,null,36]
["ПУП.04","Музыкальная литература (зарубежная и отечественная)","мг",1246,null,null,null,null,null,35,null,486,null,162,null,324,324,0,null,null,72,24,48,48,null,null,null,90,30,60,60,null,null,null,72,24,48,48,null,null,null,90,30,60,60,null,null,null,72,24,48,48,null,null,null,90,30,60,60,null,null,null,null,null,null,null,null,null,null,null,null,null,null,null,null,null,null,null,null,null,null,null,null,null,null,null,null,null,null,null,null,null,null,null,null,null,null,null,null,null,null,null,null,null,null,null,null,null,null,null,null,null,null,null,null,null,null,null,null,null,null,null,null,null,null,null,null,null,null,null,null,null,324]
[null,"час/нед",null,null,null,null,null,null,null,null,null,null,null,null,null,null,null,null,null,null,"22,6",null,{"$f":"(W27+W33+W65)/16","v":15},null,null,null,null,22.5,null,{"$f":"(AD27+AD33+AD65)/20","v":15},null,null,null,null,30.8,null,{"$f":"(AK27+AK33+AK65)/16","v":21},null,null,null,null,31.5,null,{"$f":"(AR27+AR33+AR65)/20","v":21},null,null,null,null,49.2,null,{"$f":"(AY27+AY33+AY65)/16","v":33},null,null,null,null,50.2,null,{"$f":"(BF27+BF33+BF65)/20","v":33},null,null,null,null,53.9,null,{"$f":"(BM27+BM33+BM65)/16","v":36},null,null,null,null,54,null,{"$f":"(BT27+BT33+BT65)/19","v":36},null,null,null,null,"NaN",null,"NaN",null,null,null,null,"NaN",null,"NaN",null,null,null,null,"NaN",null,"NaN",null,null,null,null,"NaN",null,"NaN",null,null,null,null,"NaN",null,"NaN",null,null,null,null,"NaN",null,"NaN",null,null,null,null,"NaN",null,"NaN",null,null,null,null,"NaN",null,"NaN"]
["ОГСЭ.00","Общий гуманитарный и социально-экономический цикл",null,{"$f":"LEN(D28)+LEN(D29)+LEN(D30)+LEN(D31)+LEN(D32)","v":1},{"$f":"LEN(E28)+LEN(E29)+LEN(E30)+LEN(E31)+LEN(E32)","v":3},3,0,0,0,3,null,{"$f":"SUM(L28:L32)","v":531},{"$f":"SUM(M28:M32)","v":0},177,0,354,192,162,null,null,null,{"$f":"SUM(V28:V32)","v":0},0,0,0,0,0,0,0,0,0,0,0,0,59,24,48,48,0,0,0,0,0,0,0,0,0,0,167,56,112,48,64,0,0,108,30,60,0,60,0,0,145,48,96,96,0,0,0,52,19,38,0,38,0,0,0,0,0,0,0,0,0,0,0,{"$f":"SUM(CH28:CH32)","v":0},0,0,0,0,0,0,0,0,0,0,0,0,0,0,0,0,0,0,0,0,0,0,0,0,0,0,0,0,0,0,0,0,0,0,0,0,0,0,0,0,0,0,0,0,0,0,{"$f":"SUM(EC28:EC32)","v":354},{"$f":"SUM(ED28:ED32)","v":354},{"$f":"SUM(EE28:EE32)","v":0}]
["ОГСЭ.01.","Основы философии","гр",null,null,5,null,null,null,null,null,72,null,24,null,{"$f":"W28+AD28+AK28+AR28+AY28+BF28+BM28+BT28","v":48},48,0,null,null,null,null,null,null,null,null,null,null,null,null,null,null,null,null,null,null,null,null,null,null,null,null,null,null,null,null,null,null,59,24,48,48,null,null,null,null,null,null,null,null,null,null,null,null,null,null,null,null,null,null,null,null,null,null,null,null,null,null,null,null,null,null,null,null,null,null,null,null,null,null,null,null,null,null,null,null,null,null,null,null,null,null,null,null,null,null,null,null,null,null,null,null,null,null,null,null,null,null,null,null,null,null,null,null,null,null,null,null,null,null,null,null,48,48]
["ОГСЭ.02.","История","гр",3,null,null,null,null,null,null,null,72,null,24,null,48,48,0,null,null,null,null,null,null,null,null,null,null,null,null,null,null,null,null,59,24,48,48,null,null,null,null,null,null,null,null,null,null,null,null,null,null,null,null,null,null,null,null,null,null,null,null,null,null,null,null,null,null,null,null,null,null,null,null,null,null,null,null,null,null,null,null,null,null,null,null,null,null,null,null,null,null,null,null,null,null,null,null,null,null,null,null,null,null,null,null,null,null,null,null,null,null,null,null,null,null,null,null,null,null,null,null,null,null,null,null,null,null,null,null,null,null,48,48]
["ОГСЭ.03.","Психология общения","гр",null,null,7,null,null,null,null,null,72,null,24,null,48,48,0,null,null,null,null,null,null,null,null,null,null,null,null,null,null,null,null,null,null,null,null,null,null,null,null,null,null,null,null,null,null,null,null,null,null,null,null,null,null,null,null,null,null,null,null,59,24,48,48,null,null,null,null,null,null,null,null,null,null,null,null,null,null,null,null,null,null,null,null,null,null,null,null,null,null,null,null,null,null,null,null,null,null,null,null,null,null,null,null,null,null,null,null,null,null,null,null,null,null,null,null,null,null,null,null,null,null,null,null,null,null,null,null,null,null,48,48]
["ОГСЭ.04.","Иностранный язык","мг",null,null,8,null,null,null,567,null,159,null,53,null,106,16,90,null,null,null,null,null,null,null,null,null,null,null,null,null,null,null,null,null,null,null,null,null,null,null,null,null,null,null,null,null,null,44,16,32,null,32,null,null,28,10,20,null,20,null,null,22,8,16,16,null,null,null,52,19,38,null,38,null,null,null,null,null,null,null,null,null,null,null,null,null,null,null,null,null,null,null,null,null,null,null,null,null,null,null,null,null,null,null,null,null,null,null,null,null,null,null,null,null,null,null,null,null,null,null,null,null,null,null,null,null,null,null,null,null,null,106,106]
["ОГСЭ.05.","Физическая культура","гр",null,567,null,null,null,null,null,null,{"$f":"N32+P32","v":156},null,52,null,104,32,72,null,null,null,null,null,null,null,null,null,null,null,null,null,null,null,null,null,null,null,null,null,null,null,null,null,null,null,null,null,null,64,16,32,null,32,null,null,80,20,40,null,40,null,null,64,16,32,32,null,null,null,null,null,null,null,null,null,null,null,null,null,null,null,null,null,null,null,null,null,null,null,null,null,null,null,null,null,null,null,null,null,null,null,null,null,null,null,null,null,null,null,null,null,null,null,null,null,null,null,null,null,null,null,null,null,null,null,null,null,null,null,null,null,null,104,104]
["П","Профессиональный цикл",null,{"$f":"D34+D43","v":{"$error":"#REF!"}},{"$f":"E34+E43","v":{"$error":"#REF!"}},{"$f":"F34+F43","v":{"$error":"#REF!"}},null,null,null,{"$f":"J34+J43","v":52},null,{"$f":"L34+L43","v":4059},null,{"$f":"N34+N43","v":1353},null,{"$f":"P34+P43","v":2706},{"$f":"Q34+Q43","v":879},{"$f":"R34+R43","v":1827},null,null,"362",{"$f":"V34+V43","v":104},{"$f":"W34+W43","v":208},{"$f":"X34+X43","v":0},{"$f":"Y34+Y43","v":208},null,{"$f":"AA34+AA43","v":0},null,{"$f":"AC34+AC43","v":120},{"$f":"AD34+AD43","v":240},{"$f":"AE34+AE43","v":0},{"$f":"AF34+AF43","v":240},null,{"$f":"AH34+AH43","v":0},null,{"$f":"AJ34+AJ43","v":120},{"$f":"AK34+AK43","v":240},{"$f":"AL34+AL43","v":48},{"$f":"AM34+AM43","v":192},null,{"$f":"AO34+AO43","v":0},null,{"$f":"AQ34+AQ43","v":170},{"$f":"AR34+AR43","v":340},{"$f":"AS34+AS43","v":40},{"$f":"AT34+AT43","v":300},null,{"$f":"AV34+AV43","v":0},null,{"$f":"AX34+AX43","v":160},{"$f":"AY34+AY43","v":320},{"$f":"AZ34+AZ43","v":154},{"$f":"BA34+BA43","v":166},null,{"$f":"BC34+BC43","v":0},null,{"$f":"BE34+BE43","v":240},{"$f":"BF34+BF43","v":480},{"$f":"BG34+BG43","v":176},{"$f":"BH34+BH43","v":304},null,{"$f":"BJ34+BJ43","v":0},null,{"$f":"BL34+BL43","v":192},{"$f":"BM34+BM43","v":384},{"$f":"BN34+BN43","v":176},{"$f":"BO34+BO43","v":208},null,{"$f":"BQ34+BQ43","v":0},null,{"$f":"BS34+BS43","v":247},{"$f":"BT34+BT43","v":494},{"$f":"BU34+BU43","v":285},{"$f":"BV34+BV43","v":209},null,{"$f":"BX34+BX43","v":0},null,null,null,null,null,null,null,null,null,null,null,null,null,null,null,null,null,null,null,null,null,null,null,null,null,null,null,null,null,null,null,null,null,null,null,null,null,null,null,null,null,null,null,null,null,null,null,null,null,null,null,null,null,null,null,null,null,{"$f":"ED34+ED43","v":2130},{"$f":"EE34+EE43","v":576}]
["ОП.00","Общепрофессиональные учебныедисциплины",null,{"$f":"LEN(D35)+LEN(D36)+LEN(D37)+LEN(D38)+LEN(D39)+LEN(#REF!)+LEN(D40)+LEN(D41)+LEN(D42)","v":{"$error":"#REF!"}},{"$f":"LEN(E35)+LEN(E36)+LEN(E37)+LEN(E38)+LEN(E39)+LEN(#REF!)+LEN(E40)+LEN(E41)+LEN(E42)","v":{"$error":"#REF!"}},{"$f":"LEN(F35)+LEN(F36)+LEN(F37)+LEN(F38)+LEN(F39)+LEN(#REF!)+LEN(F40)+LEN(F41)+LEN(F42)","v":{"$error":"#REF!"}},null,null,null,15,null,{"$f":"SUM(L35:L42)","v":1276},null,{"$f":"SUM(N35:N42)","v":425},null,{"$f":"SUM(P35:P42)","v":851},{"$f":"SUM(Q35:Q42)","v":281},{"$f":"SUM(R35:R42)","v":570},null,null,"96",{"$f":"SUM(V35:V42)","v":40},{"$f":"SUM(W35:W42)","v":80},{"$f":"SUM(X35:X42)","v":0},{"$f":"SUM(Y35:Y42)","v":80},null,{"$f":"SUM(AA35:AA42)","v":0},null,{"$f":"SUM(AC35:AC42)","v":50},{"$f":"SUM(AD35:AD42)","v":100},{"$f":"SUM(AE35:AE42)","v":0},{"$f":"SUM(AF35:AF42)","v":100},null,{"$f":"SUM(AH35:AH42)","v":0},null,{"$f":"SUM(AJ35:AJ42)","v":32},{"$f":"SUM(AK35:AK42)","v":64},{"$f":"SUM(AL35:AL42)","v":0},{"$f":"SUM(AM35:AM42)","v":64},null,{"$f":"SUM(AO35:AO42)","v":0},null,{"$f":"SUM(AQ35:AQ42)","v":40},{"$f":"SUM(AR35:AR42)","v":80},{"$f":"SUM(AS35:AS42)","v":0},{"$f":"SUM(AT35:AT42)","v":80},null,{"$f":"SUM(AV35:AV42)","v":0},null,{"$f":"SUM(AX35:AX42)","v":40},{"$f":"SUM(AY35:AY42)","v":80},{"$f":"SUM(AZ35:AZ42)","v":16},{"$f":"SUM(BA35:BA42)","v":64},null,{"$f":"SUM(BC35:BC42)","v":0},null,{"$f":"SUM(BE35:BE42)","v":50},{"$f":"SUM(BF35:BF42)","v":100},{"$f":"SUM(BG35:BG42)","v":20},{"$f":"SUM(BH35:BH42)","v":80},null,{"$f":"SUM(BJ35:BJ42)","v":0},null,{"$f":"SUM(BL35:BL42)","v":88},{"$f":"SUM(BM35:BM42)","v":176},{"$f":"SUM(BN35:BN42)","v":112},{"$f":"SUM(BO35:BO42)","v":64},null,{"$f":"SUM(BQ35:BQ42)","v":0},null,{"$f":"SUM(BS35:BS42)","v":85},{"$f":"SUM(BT35:BT42)","v":171},{"$f":"SUM(BU35:BU42)","v":133},{"$f":"SUM(BV35:BV42)","v":38},null,{"$f":"SUM(BX35:BX42)","v":0},null,null,null,null,null,null,null,null,null,null,null,null,null,null,null,null,null,null,null,null,null,null,null,null,null,null,null,null,null,null,null,null,null,null,null,null,null,null,null,null,null,null,null,null,null,null,null,null,null,null,null,null,null,null,null,null,null,{"$f":"SUM(ED35:ED42)","v":815},{"$f":"SUM(EE35:EE42)","v":36}]
["ОП.01","Музыкальная литература (зарубежная и отечественная)","мг","8",null,null,null,null,null,"7",null,{"$f":"N35+P35","v":157},null,{"$f":"V35+AC35+AJ35+AQ35+AX35+BE35+BL35+BS35","v":52},{"$f":"V35+AC35+AJ35+AQ35+AX35+BE35+BL35+BS35","v":52},{"$f":"W35+AD35+AK35+AR35+AY35+BF35+BM35+BT35","v":105},{"$f":"X35+AE35+AL35+AS35+AZ35+BG35+BN35+BU35","v":105},{"$f":"Y35+AF35+AM35+AT35+BA35+BH35+BO35+BV35","v":0},null,null,null,null,null,null,null,null,null,null,null,null,null,null,null,null,null,null,null,null,null,null,null,null,null,null,null,null,null,null,null,null,null,null,null,null,null,null,null,null,null,null,null,null,72,24,48,48,null,null,null,85,28,57,57,null,null,null,null,null,null,null,null,null,null,null,null,null,null,null,null,null,null,null,null,null,null,null,null,null,null,null,null,null,null,null,null,null,null,null,null,null,null,null,null,null,null,null,null,null,null,null,null,null,null,null,null,null,null,null,null,null,null,null,null,105]
["ОП.02","Сольфеджио","мг","47",null,28,null,null,null,"1356",null,{"$f":"N36+P36","v":429},null,{"$f":"V36+AC36+AJ36+AQ36+AX36+BE36+BL36+BS36","v":143},{"$f":"V36+AC36+AJ36+AQ36+AX36+BE36+BL36+BS36","v":143},286,{"$f":"X36+AE36+AL36+AS36+AZ36+BG36+BN36+BU36","v":0},{"$f":"Y36+AF36+AM36+AT36+BA36+BH36+BO36+BV36","v":286},null,null,"48",16,32,null,32,null,null,60,20,40,null,40,null,null,48,16,32,null,32,null,null,60,20,40,null,40,null,null,48,16,32,null,32,null,null,60,20,40,null,40,null,null,48,16,32,null,32,null,null,null,19,38,null,38,null,null,null,null,null,null,null,null,null,null,null,null,null,null,null,null,null,null,null,null,null,null,null,null,null,null,null,null,null,null,null,null,null,null,null,null,null,null,null,null,null,null,null,null,null,null,null,null,null,null,null,null,null,null,null,null,null,null,null,286]
[null,"Индив.сольфеджио","инд",null,null,null,null,null,null,1246,null,54,null,18,18,{"$f":"W37+AD37+AK37+AR37+AY37+BF37+BM37+BT37","v":36},0,36,null,null,null,8,16,null,16,null,null,null,10,20,null,20,null,null,null,null,null,null,null,null,null,null,null,null,null,null,null,null,null,null,null,null,null,null,null,null,null,null,null,null,null,null,null,null,null,null,null,null,null,null,null,null,null,null,null,null,null,null,null,null,null,null,null,null,null,null,null,null,null,null,null,null,null,null,null,null,null,null,null,null,null,null,null,null,null,null,null,null,null,null,null,null,null,null,null,null,null,null,null,null,null,null,null,null,null,null,null,null,null,null,null,null,null,null,36]
["ОП.03","Элементарная теория музыки","мг","2",null,"1",null,null,null,null,null,108,null,36,36,72,0,72,null,null,"48",16,32,null,32,null,null,60,20,40,null,40,null,null,null,null,null,null,null,null,null,null,null,null,null,null,null,null,null,null,null,null,null,null,null,null,null,null,null,null,null,null,null,null,null,null,null,null,null,null,null,null,null,null,null,null,null,null,null,null,null,null,null,null,null,null,null,null,null,null,null,null,null,null,null,null,null,null,null,null,null,null,null,null,null,null,null,null,null,null,null,null,null,null,null,null,null,null,null,null,null,null,null,null,null,null,null,null,null,null,null,null,null,72]
["ОП.04","Гармония","мг","57",null,null,null,null,null,"346",null,264,null,88,88,176,0,176,null,null,null,null,null,null,null,null,null,null,null,null,null,null,null,null,48,16,32,null,32,null,null,60,20,40,null,40,null,null,48,16,32,null,32,null,null,60,20,40,null,40,null,null,48,16,32,null,32,null,null,null,null,null,null,null,null,null,null,null,null,null,null,null,null,null,null,null,null,null,null,null,null,null,null,null,null,null,null,null,null,null,null,null,null,null,null,null,null,null,null,null,null,null,null,null,null,null,null,null,null,null,null,null,null,null,null,null,null,null,null,null,null,null,null,176]
["ОП.05","Анализ музыкальных произведений","мг",null,null,"8",null,null,null,null,null,57,null,19,19,38,38,0,null,null,null,null,null,null,null,null,null,null,null,null,null,null,null,null,null,null,null,null,null,null,null,null,null,null,null,null,null,null,null,null,null,null,null,null,null,null,null,null,null,null,null,null,48,null,null,null,null,null,null,57,19,38,38,null,null,null,null,null,null,null,null,null,null,null,null,null,null,null,null,null,null,null,null,null,null,null,null,null,null,null,null,null,null,null,null,null,null,null,null,null,null,null,null,null,null,null,null,null,null,null,null,null,null,null,null,null,null,null,null,null,null,null,null,38]
["ОП.06","Музыкальная информатика","мг",null,null,8,null,null,null,7,null,105,null,35,35,70,70,0,null,null,null,null,null,null,null,null,null,null,null,null,null,null,null,null,48,null,null,null,null,null,null,60,null,null,null,null,null,null,null,null,null,null,null,null,null,null,null,null,null,null,null,null,null,16,32,32,null,null,null,null,19,38,38,null,null,null,null,null,null,null,null,null,null,null,null,null,null,null,null,null,null,null,null,null,null,null,null,null,null,null,null,null,null,null,null,null,null,null,null,null,null,null,null,null,null,null,null,null,null,null,null,null,null,null,null,null,null,null,null,null,null,null,null,70]
["ОП.07","Безопасность жизнедеятельности","гр",null,null,"7",null,null,null,"56",null,102,null,34,34,68,68,0,null,null,null,null,null,null,null,null,null,null,null,null,null,null,null,null,null,null,null,null,null,null,null,null,null,null,null,null,null,null,18,8,16,16,null,null,null,22,10,20,20,null,null,null,36,16,32,32,null,null,null,null,null,null,null,null,null,null,null,null,null,null,null,null,null,null,null,null,null,null,null,null,null,null,null,null,null,null,null,null,null,null,null,null,null,null,null,null,null,null,null,null,null,null,null,null,null,null,null,null,null,null,null,null,null,null,null,null,null,null,null,null,null,null,null,68]
["ПМ","Профессиональные модули",null,{"$f":"D44+D55","v":13},{"$f":"E44+E55","v":1},{"$f":"F44+F55","v":3},null,null,null,{"$f":"J44+J55","v":37},null,{"$f":"L44+L55","v":2783},null,{"$f":"N44+N55","v":928},null,{"$f":"P44+P55","v":1855},{"$f":"Q44+Q55","v":598},{"$f":"R44+R55","v":1257},null,null,"266",{"$f":"V44+V55","v":64},{"$f":"W44+W55","v":128},{"$f":"X44+X55","v":0},{"$f":"Y44+Y55","v":128},null,{"$f":"AA44+AA55","v":0},null,{"$f":"AC44+AC55","v":70},{"$f":"AD44+AD55","v":140},{"$f":"AE44+AE55","v":0},{"$f":"AF44+AF55","v":140},null,{"$f":"AH44+AH55","v":0},null,{"$f":"AJ44+AJ55","v":88},{"$f":"AK44+AK55","v":176},{"$f":"AL44+AL55","v":48},{"$f":"AM44+AM55","v":128},null,{"$f":"AO44+AO55","v":0},null,{"$f":"AQ44+AQ55","v":130},{"$f":"AR44+AR55","v":260},{"$f":"AS44+AS55","v":40},{"$f":"AT44+AT55","v":220},null,{"$f":"AV44+AV55","v":0},null,{"$f":"AX44+AX55","v":120},{"$f":"AY44+AY55","v":240},{"$f":"AZ44+AZ55","v":138},{"$f":"BA44+BA55","v":102},null,{"$f":"BC44+BC55","v":0},null,{"$f":"BE44+BE55","v":190},{"$f":"BF44+BF55","v":380},{"$f":"BG44+BG55","v":156},{"$f":"BH44+BH55","v":224},null,{"$f":"BJ44+BJ55","v":0},null,{"$f":"BL44+BL55","v":104},{"$f":"BM44+BM55","v":208},{"$f":"BN44+BN55","v":64},{"$f":"BO44+BO55","v":144},null,{"$f":"BQ44+BQ55","v":0},null,{"$f":"BS44+BS55","v":162},{"$f":"BT44+BT55","v":323},{"$f":"BU44+BU55","v":152},{"$f":"BV44+BV55","v":171},null,{"$f":"BX44+BX55","v":0},null,null,null,null,null,null,null,null,null,null,null,null,null,null,null,null,null,null,null,null,null,null,null,null,null,null,null,null,null,null,null,null,null,null,null,null,null,null,null,null,null,null,null,null,null,null,null,null,null,null,null,null,null,null,null,null,null,{"$f":"ED44+ED55","v":1315},{"$f":"EE44+EE55","v":540}]
["ПМ.01","Исполнительская деятельность",null,{"$f":"LEN(D45)+LEN(D46)+LEN(D48)+LEN(D49)+LEN(D50)+LEN(D51)+LEN(D52)+LEN(D53)+LEN(D54)","v":11},{"$f":"LEN(E45)+LEN(E46)+LEN(E48)+LEN(E49)+LEN(E50)+LEN(E51)+LEN(E52)+LEN(E53)+LEN(E54)","v":0},{"$f":"LEN(F45)+LEN(F46)+LEN(F48)+LEN(F49)+LEN(F50)+LEN(F51)+LEN(F52)+LEN(F53)+LEN(F54)","v":1},null,null,null,{"$f":"LEN(J45)+LEN(J46)+LEN(J48)+LEN(J49)+LEN(J50)+LEN(J51)+LEN(J52)+LEN(J53)+LEN(J54)","v":25},null,{"$f":"SUM(L45:L54)","v":2006},null,{"$f":"SUM(N45:N54)","v":669},null,{"$f":"SUM(P45:P54)","v":1337},{"$f":"SUM(Q45:Q54)","v":149},{"$f":"SUM(R45:R54)","v":1188},null,null,"98",{"$f":"SUM(V45:V54)","v":64},{"$f":"SUM(W45:W54)","v":128},{"$f":"SUM(X45:X54)","v":0},{"$f":"SUM(Y45:Y54)","v":128},null,{"$f":"SUM(AA45:AA54)","v":0},null,{"$f":"SUM(AC45:AC54)","v":70},{"$f":"SUM(AD45:AD54)","v":140},{"$f":"SUM(AE45:AE54)","v":0},{"$f":"SUM(AF45:AF54)","v":140},null,{"$f":"SUM(AH45:AH54)","v":0},null,{"$f":"SUM(AJ45:AJ54)","v":64},{"$f":"SUM(AK45:AK54)","v":128},{"$f":"SUM(AL45:AL54)","v":0},{"$f":"SUM(AM45:AM54)","v":128},null,{"$f":"SUM(AO45:AO54)","v":0},null,{"$f":"SUM(AQ45:AQ54)","v":100},{"$f":"SUM(AR45:AR54)","v":200},{"$f":"SUM(AS45:AS54)","v":0},{"$f":"SUM(AT45:AT54)","v":200},null,{"$f":"SUM(AV45:AV54)","v":0},null,{"$f":"SUM(AX45:AX54)","v":64},{"$f":"SUM(AY45:AY54)","v":128},{"$f":"SUM(AZ45:AZ54)","v":32},{"$f":"SUM(BA45:BA54)","v":96},null,{"$f":"SUM(BC45:BC54)","v":0},null,{"$f":"SUM(BE45:BE54)","v":130},{"$f":"SUM(BF45:BF54)","v":260},{"$f":"SUM(BG45:BG54)","v":60},{"$f":"SUM(BH45:BH54)","v":200},null,{"$f":"SUM(BJ45:BJ54)","v":0},null,{"$f":"SUM(BL45:BL54)","v":72},{"$f":"SUM(BM45:BM54)","v":144},{"$f":"SUM(BN45:BN54)","v":0},{"$f":"SUM(BO45:BO54)","v":144},null,{"$f":"SUM(BQ45:BQ54)","v":0},null,{"$f":"SUM(BS45:BS54)","v":105},{"$f":"SUM(BT45:BT54)","v":209},{"$f":"SUM(BU45:BU54)","v":57},{"$f":"SUM(BV45:BV54)","v":152},null,{"$f":"SUM(BX45:BX54)","v":0},null,null,null,null,null,null,null,null,null,null,null,null,null,null,null,null,null,null,null,null,null,null,null,null,null,null,null,null,null,null,null,null,null,null,null,null,null,null,null,null,null,null,null,null,null,null,null,null,null,null,null,null,null,null,null,null,null,{"$f":"SUM(ED45:ED54)","v":875},{"$f":"SUM(EE45:EE54)","v":462}]
["МДК.01.01.","Специальный инструмент ","инд","23456",null,null,null,null,null,"178",null,{"$f":"N45+P45","v":732},null,{"$f":"V45+AC45+AJ45+AQ45+AX45+BE45+BL45+BS45","v":244},{"$f":"V45+AC45+AJ45+AQ45+AX45+BE45+BL45+BS45","v":244},{"$f":"W45+AD45+AK45+AR45+AY45+BF45+BM45+BT45","v":488},{"$f":"X45+AE45+AL45+AS45+AZ45+BG45+BN45+BU45","v":0},{"$f":"Y45+AF45+AM45+AT45+BA45+BH45+BO45+BV45","v":488},null,null,"74",24,48,null,48,null,null,91,30,60,null,60,null,null,74,24,48,null,48,null,null,91,40,80,null,80,null,null,73,24,48,null,48,null,null,91,40,80,null,80,null,null,73,24,48,null,48,null,null,87,38,76,null,76,null,null,null,null,null,null,null,null,null,null,null,null,null,null,null,null,null,null,null,null,null,null,null,null,null,null,null,null,null,null,null,null,null,null,null,null,null,null,null,null,null,null,null,null,null,null,null,null,null,null,null,null,null,null,null,null,null,null,null,429,59]
["МДК.01.02.","Ансамблевое исполнительство","мг","6",null,"8",null,null,null,"3457",null,{"$f":"N46+P46","v":160},null,{"$f":"V46+AC46+AJ46+AQ46+AX46+BE46+BL46+BS46","v":53},{"$f":"V46+AC46+AJ46+AQ46+AX46+BE46+BL46+BS46","v":53},{"$f":"W46+AD46+AK46+AR46+AY46+BF46+BM46+BT46","v":107},{"$f":"X46+AE46+AL46+AS46+AZ46+BG46+BN46+BU46","v":0},{"$f":"Y46+AF46+AM46+AT46+BA46+BH46+BO46+BV46","v":107},null,null,null,null,null,null,null,null,null,null,null,null,null,null,null,null,24,8,16,null,16,null,null,30,10,20,null,20,null,null,24,8,16,null,16,null,null,30,10,20,null,20,null,null,24,8,16,null,16,null,null,28,9,19,null,19,null,null,null,null,null,null,null,null,null,null,null,null,null,null,null,null,null,null,null,null,null,null,null,null,null,null,null,null,null,null,null,null,null,null,null,null,null,null,null,null,null,null,null,null,null,null,null,null,null,null,null,null,null,null,null,null,null,null,null,107]
[null,"Оркестровый класс: ансамбль","ГР",null,null,null,null,null,null,12347,null,{"$f":"N47+P47","v":366},null,{"$f":"V47+AC47+AJ47+AQ47+AX47+BE47+BL47+BS47","v":122},{"$f":"V47+AC47+AJ47+AQ47+AX47+BE47+BL47+BS47","v":122},{"$f":"W47+AD47+AK47+AR47+AY47+BF47+BM47+BT47","v":244},{"$f":"X47+AE47+AL47+AS47+AZ47+BG47+BN47+BU47","v":0},{"$f":"Y47+AF47+AM47+AT47+BA47+BH47+BO47+BV47","v":244},null,null,null,32,64,null,64,null,null,null,30,60,null,60,null,null,null,24,48,null,48,null,null,null,20,40,null,40,null,null,null,null,null,null,null,null,null,null,null,null,null,null,null,null,null,16,32,null,32,null,null,null,null,null,null,null,null,null,null,null,null,null,null,null,null,null,null,null,null,null,null,null,null,null,null,null,null,null,null,null,null,null,null,null,null,null,null,null,null,null,null,null,null,null,null,null,null,null,null,null,null,null,null,null,null,null,null,null,null,null,null,null,null,null,null,null,244]
[null,"Камерный ансамбль","инд",null,null,null,null,null,null,468,null,88,null,29,29,59,0,59,null,null,null,null,null,null,null,null,null,null,null,null,null,null,null,null,null,null,null,null,null,null,null,null,10,20,null,20,null,null,null,null,null,null,null,null,null,null,10,20,null,20,null,null,null,null,null,null,null,null,null,null,9,19,null,19,null,null,null,null,null,null,null,null,null,null,null,null,null,null,null,null,null,null,null,null,null,null,null,null,null,null,null,null,null,null,null,null,null,null,null,null,null,null,null,null,null,null,null,null,null,null,null,null,null,null,null,null,null,null,null,null,null,null,null,null,59]
["МДК.01.03.","Дирижирование,чтение оркестровых партитур: чтение оркестровых партитур","инд",68,null,null,null,null,null,57,null,107,null,36,36,71,0,71,null,null,null,null,null,null,null,null,null,null,null,null,null,null,null,null,null,null,null,null,null,null,null,null,null,null,null,null,null,null,24,8,16,null,16,null,null,30,10,20,null,20,null,null,24,8,16,null,16,null,null,28,10,19,null,19,null,null,null,null,null,null,null,null,null,null,null,null,null,null,null,null,null,null,null,null,null,null,null,null,null,null,null,null,null,null,null,null,null,null,null,null,null,null,null,null,null,null,null,null,null,null,null,null,null,null,null,null,null,null,null,null,null,null,null,71]
[null,"Дирижирование,чтение оркестровых партитур: дирижирование","инд",null,null,null,null,null,null,78,null,143,null,48,48,95,0,95,null,null,null,null,null,null,null,null,null,null,null,null,null,null,null,null,null,null,null,null,null,null,null,null,10,20,null,20,null,null,24,null,null,null,null,null,null,null,20,40,null,40,null,null,24,8,16,null,16,null,null,28,10,19,null,19,null,null,null,null,null,null,null,null,null,null,null,null,null,null,null,null,null,null,null,null,null,null,null,null,null,null,null,null,null,null,null,null,null,null,null,null,null,null,null,null,null,null,null,null,null,null,null,null,null,null,null,null,null,null,null,null,null,null,null,35,60]
["МДК.01.04.","Дополнительный инструмент-фортепиано","инд",57,null,null,null,null,null,12346,null,186,null,62,62,124,0,124,null,null,null,8,16,null,16,null,null,null,10,20,null,20,null,null,null,8,16,null,16,null,null,null,10,20,null,20,null,null,24,8,16,null,16,null,null,null,10,20,null,20,null,null,24,8,16,null,16,null,null,28,null,null,null,null,null,null,null,null,null,null,null,null,null,null,null,null,null,null,null,null,null,null,null,null,null,null,null,null,null,null,null,null,null,null,null,null,null,null,null,null,null,null,null,null,null,null,null,null,null,null,null,null,null,null,null,null,null,null,null,null,null,null,null,124]
["МДК.01.05.","История исполнительского искусства, инструментоведение,изучение родственных инструментов: история исполнительского искусства","мг",8,null,null,null,null,null,56,null,111,null,37,37,74,74,0,null,null,null,null,null,null,null,null,null,null,null,null,null,null,null,null,null,null,null,null,null,null,null,null,null,null,null,null,null,null,null,8,16,16,null,null,null,null,10,20,20,null,null,null,48,null,null,null,null,null,null,57,19,38,38,null,null,null,null,null,null,null,null,null,null,null,null,null,null,null,null,null,null,null,null,null,null,null,null,null,null,null,null,null,null,null,null,null,null,null,null,null,null,null,null,null,null,null,null,null,null,null,null,null,null,null,null,null,null,null,null,null,null,null,null,74]
[null,"История исполнительского искусства, инструментоведение,изучение родственных инструментов: изучение родственных инструментов","инд.",null,null,null,null,null,null,568,null,83,null,28,28,55,55,0,null,null,null,null,null,null,null,null,null,null,null,null,null,null,null,null,null,null,null,null,null,null,null,null,null,null,null,null,null,null,null,8,16,16,null,null,null,null,10,20,20,null,null,null,null,null,null,null,null,null,null,57,10,19,19,null,null,null,null,null,null,null,null,null,null,null,null,null,null,null,null,null,null,null,null,null,null,null,null,null,null,null,null,null,null,null,null,null,null,null,null,null,null,null,null,null,null,null,null,null,null,null,null,null,null,null,null,null,null,null,null,null,null,null,null,35,20]
[null,"История исполнительского искусства, инструментоведение,изучение родственных инструментов: инструментоведение","мг",null,null,null,null,null,null,6,null,30,null,10,10,20,20,0,null,null,null,null,null,null,null,null,null,null,null,null,null,null,null,null,null,null,null,null,null,null,null,null,null,null,null,null,null,null,null,null,null,null,null,null,null,null,10,20,20,null,null,null,null,null,null,null,null,null,null,57,null,null,null,null,null,null,null,null,null,null,null,null,null,null,null,null,null,null,null,null,null,null,null,null,null,null,null,null,null,null,null,null,null,null,null,null,null,null,null,null,null,null,null,null,null,null,null,null,null,null,null,null,null,null,null,null,null,null,null,null,null,null,null,null,20]
["ПМ.02","Педагогическая деятельность",null,{"$f":"LEN(D56)+LEN(D57)+LEN(D58)+LEN(D59)+LEN(D60)+LEN(D63)+LEN(D61)+LEN(D62)+LEN(D64)","v":2},{"$f":"LEN(E56)+LEN(E57)+LEN(E58)+LEN(E59)+LEN(E60)+LEN(E63)+LEN(E61)+LEN(E62)+LEN(E64)","v":1},{"$f":"LEN(F56)+LEN(F57)+LEN(F58)+LEN(F59)+LEN(F60)+LEN(F63)+LEN(F61)+LEN(F62)+LEN(F64)","v":2},null,null,null,{"$f":"LEN(J56)+LEN(J57)+LEN(J58)+LEN(J59)+LEN(J60)+LEN(J63)+LEN(J61)+LEN(J62)+LEN(J64)","v":12},null,{"$f":"SUM(L56:L64)","v":777},null,{"$f":"SUM(N56:N64)","v":259},null,{"$f":"SUM(P56:P64)","v":518},{"$f":"SUM(Q56:Q64)","v":449},{"$f":"SUM(R56:R64)","v":69},null,null,"24",{"$f":"SUM(V56:V64)","v":0},{"$f":"SUM(W56:W64)","v":0},{"$f":"SUM(X56:X64)","v":0},{"$f":"SUM(Y56:Y64)","v":0},null,{"$f":"SUM(AA56:AA64)","v":0},null,{"$f":"SUM(AC56:AC64)","v":0},{"$f":"SUM(AD56:AD64)","v":0},{"$f":"SUM(AE56:AE64)","v":0},{"$f":"SUM(AF56:AF64)","v":0},null,{"$f":"SUM(AH56:AH64)","v":0},null,{"$f":"SUM(AJ56:AJ64)","v":24},{"$f":"SUM(AK56:AK64)","v":48},{"$f":"SUM(AL56:AL64)","v":48},{"$f":"SUM(AM56:AM64)","v":0},null,{"$f":"SUM(AO56:AO64)","v":0},null,{"$f":"SUM(AQ56:AQ64)","v":30},{"$f":"SUM(AR56:AR64)","v":60},{"$f":"SUM(AS56:AS64)","v":40},{"$f":"SUM(AT56:AT64)","v":20},null,{"$f":"SUM(AV56:AV64)","v":0},null,{"$f":"SUM(AX56:AX64)","v":56},{"$f":"SUM(AY56:AY64)","v":112},{"$f":"SUM(AZ56:AZ64)","v":106},{"$f":"SUM(BA56:BA64)","v":6},null,{"$f":"SUM(BC56:BC64)","v":0},null,{"$f":"SUM(BE56:BE64)","v":60},{"$f":"SUM(BF56:BF64)","v":120},{"$f":"SUM(BG56:BG64)","v":96},{"$f":"SUM(BH56:BH64)","v":24},null,{"$f":"SUM(BJ56:BJ64)","v":0},null,{"$f":"SUM(BL56:BL64)","v":32},{"$f":"SUM(BM56:BM64)","v":64},{"$f":"SUM(BN56:BN64)","v":64},{"$f":"SUM(BO56:BO64)","v":0},null,{"$f":"SUM(BQ56:BQ64)","v":0},null,{"$f":"SUM(BS56:BS64)","v":57},{"$f":"SUM(BT56:BT64)","v":114},{"$f":"SUM(BU56:BU64)","v":95},{"$f":"SUM(BV56:BV64)","v":19},null,{"$f":"SUM(BX56:BX64)","v":0},null,null,null,null,null,null,null,null,null,null,null,null,null,null,null,null,null,null,null,null,null,null,null,null,null,null,null,null,null,null,null,null,null,null,null,null,null,null,null,null,null,null,null,null,null,null,null,null,null,null,null,null,null,null,null,null,null,{"$f":"SUM(ED56:ED64)","v":440},{"$f":"SUM(EE56:EE64)","v":78}]
["МДК.02.01.","Педагогические основы преподавания творческих дисциплин: основы педагогики","гр",null,null,null,null,null,null,"34",null,{"$f":"N56+P56","v":108},null,{"$f":"V56+AC56+AJ56+AQ56+AX56+BE56+BL56+BS56","v":36},{"$f":"V56+AC56+AJ56+AQ56+AX56+BE56+BL56+BS56","v":36},{"$f":"W56+AD56+AK56+AR56+AY56+BF56+BM56+BT56","v":72},{"$f":"X56+AE56+AL56+AS56+AZ56+BG56+BN56+BU56","v":72},{"$f":"Y56+AF56+AM56+AT56+BA56+BH56+BO56+BV56","v":0},null,null,null,null,null,null,null,null,null,null,null,null,null,null,null,null,48,16,32,32,null,null,null,60,20,40,40,null,null,null,null,null,null,null,null,null,null,null,null,null,null,null,null,null,null,null,null,null,null,null,null,null,null,null,null,null,null,null,null,null,null,null,null,null,null,null,null,null,null,null,null,null,null,null,null,null,null,null,null,null,null,null,null,null,null,null,null,null,null,null,null,null,null,null,null,null,null,null,null,null,null,null,null,null,null,null,null,null,null,null,null,null,null,null,null,72]
[null,"Педагогические основы преподавания творческих дисциплин: основы системы музыкального образования","гр","6",null,null,null,null,null,"5",null,{"$f":"N57+P57","v":108},null,{"$f":"V57+AC57+AJ57+AQ57+AX57+BE57+BL57+BS57","v":36},{"$f":"V57+AC57+AJ57+AQ57+AX57+BE57+BL57+BS57","v":36},{"$f":"W57+AD57+AK57+AR57+AY57+BF57+BM57+BT57","v":72},{"$f":"X57+AE57+AL57+AS57+AZ57+BG57+BN57+BU57","v":72},{"$f":"Y57+AF57+AM57+AT57+BA57+BH57+BO57+BV57","v":0},null,null,null,null,null,null,null,null,null,null,null,null,null,null,null,null,null,null,null,null,null,null,null,null,null,null,null,null,null,null,48,16,32,32,null,null,null,60,20,40,40,null,null,null,null,null,null,null,null,null,null,null,null,null,null,null,null,null,null,null,null,null,null,null,null,null,null,null,null,null,null,null,null,null,null,null,null,null,null,null,null,null,null,null,null,null,null,null,null,null,null,null,null,null,null,null,null,null,null,null,null,null,null,null,null,null,null,null,null,null,null,null,null,null,null,72]
[null,"Педагогические основы преподавания творческих дисциплин: возрастная психология","гр",null,null,null,null,null,null,"56",null,54,null,18,18,36,36,0,null,null,null,null,null,null,null,null,null,null,null,null,null,null,null,null,null,null,null,null,null,null,null,null,null,null,null,null,null,null,24,8,16,16,null,null,null,30,10,20,20,null,null,null,null,null,null,null,null,null,null,null,null,null,null,null,null,null,null,null,null,null,null,null,null,null,null,null,null,null,null,null,null,null,null,null,null,null,null,null,null,null,null,null,null,null,null,null,null,null,null,null,null,null,null,null,null,null,null,null,null,null,null,null,null,null,null,null,null,null,null,null,null,null,null,36]
[null,"Педагогические основы преподавания творческих ди сциплин: основы организации учебного процесса","гр",null,null,null,null,null,null,"7",null,48,null,16,16,32,32,0,null,null,null,null,null,null,null,null,null,null,null,null,null,null,null,null,null,null,null,null,null,null,null,null,null,null,null,null,null,null,null,null,null,null,null,null,null,null,null,null,null,null,null,null,48,16,32,32,null,null,null,null,null,null,null,null,null,null,null,null,null,null,null,null,null,null,null,null,null,null,null,null,null,null,null,null,null,null,null,null,null,null,null,null,null,null,null,null,null,null,null,null,null,null,null,null,null,null,null,null,null,null,null,null,null,null,null,null,null,null,null,null,null,null,null,32]
[null,"Педагогические основы преподавания творческих дисциплин: основы психологии музыкального восприятия","гр",null,null,"8",null,null,null,null,null,57,null,19,19,38,38,0,null,null,null,null,null,null,null,null,null,null,null,null,null,null,null,null,null,null,null,null,null,null,null,null,null,null,null,null,null,null,null,null,null,null,null,null,null,null,null,null,null,null,null,null,null,null,null,null,null,null,null,57,19,38,38,null,null,null,null,null,null,null,null,null,null,null,null,null,null,null,null,null,null,null,null,null,null,null,null,null,null,null,null,null,null,null,null,null,null,null,null,null,null,null,null,null,null,null,null,null,null,null,null,null,null,null,null,null,null,null,null,null,null,null,null,38]
["МДК.02.02","Учебно-методическое обеспечение учебного процесса: методика обучения игре на инструменте","мг",null,null,6,null,null,null,58,null,184,null,61,61,123,113,10,null,null,null,null,null,null,null,null,null,null,null,null,null,null,null,null,null,null,null,null,null,null,null,null,null,null,null,null,null,null,96,32,64,58,6,null,null,60,20,40,36,4,null,null,null,null,null,null,null,null,null,null,9,19,19,null,null,null,null,null,null,null,null,null,null,null,null,null,null,null,null,null,null,null,null,null,null,null,null,null,null,null,null,null,null,null,null,null,null,null,null,null,null,null,null,null,null,null,null,null,null,null,null,null,null,null,null,null,null,null,null,null,null,null,null,104,19]
[null,"Учебно-методическое обеспечение учебного процесса: изучение методической литературы по вопросам педагогики и методики","мг",7,null,null,null,null,null,"3",null,72,null,24,24,48,48,0,null,null,null,null,null,null,null,null,null,null,null,null,null,null,null,null,24,8,16,16,null,null,null,null,null,null,null,null,null,null,null,null,null,null,null,null,null,60,null,null,null,null,null,null,null,16,32,32,null,null,null,null,null,null,null,null,null,null,null,null,null,null,null,null,null,null,null,null,null,null,null,null,null,null,null,null,null,null,null,null,null,null,null,null,null,null,null,null,null,null,null,null,null,null,null,null,null,null,null,null,null,null,null,null,null,null,null,null,null,null,null,null,null,null,null,48]
[null,"Изучение репертуара ДШИ","инд",null,null,null,null,null,null,468,null,{"$f":"N63+P63","v":89},null,{"$f":"V63+AC63+AJ63+AQ63+AX63+BE63+BL63+BS63","v":30},{"$f":"V63+AC63+AJ63+AQ63+AX63+BE63+BL63+BS63","v":30},{"$f":"W63+AD63+AK63+AR63+AY63+BF63+BM63+BT63","v":59},{"$f":"X63+AE63+AL63+AS63+AZ63+BG63+BN63+BU63","v":0},{"$f":"Y63+AF63+AM63+AT63+BA63+BH63+BO63+BV63","v":59},null,null,"24",null,null,null,null,null,null,30,null,null,null,null,null,null,null,null,null,null,null,null,null,null,10,20,null,20,null,null,null,null,null,null,null,null,null,null,10,20,null,20,null,null,null,null,null,null,null,null,null,null,10,19,null,19,null,null,null,null,null,null,null,null,null,null,null,null,null,null,null,null,null,null,null,null,null,null,null,null,null,null,null,null,null,null,null,null,null,null,null,null,null,null,null,null,null,null,null,null,null,null,null,null,null,null,null,null,null,null,null,null,null,null,null,null,59]
[null,"Учебно-методическое обеспечение учебногопроцесса: ритмика","гр",null,8,null,null,null,null,null,null,57,null,19,19,38,38,0,null,null,null,null,null,null,null,null,null,null,null,null,null,null,null,null,null,null,null,null,null,null,null,null,null,null,null,null,null,null,null,null,null,null,null,null,null,null,null,null,null,null,null,null,null,null,null,null,null,null,null,57,19,38,38,null,null,null,null,null,null,null,null,null,null,null,null,null,null,null,null,null,null,null,null,null,null,null,null,null,null,null,null,null,null,null,null,null,null,null,null,null,null,null,null,null,null,null,null,null,null,null,null,null,null,null,null,null,null,null,null,null,null,null,null,38]
["УП","Учебная практика",null,null,null,2,null,null,null,8,null,{"$f":"SUM(L66:L67)","v":1026},null,{"$f":"SUM(N66:N67)","v":342},null,{"$f":"SUM(P66:P67)","v":684},{"$f":"SUM(Q66:Q67)","v":0},{"$f":"SUM(R66:R67)","v":684},null,null,null,{"$f":"SUM(V66:V67)","v":16},{"$f":"SUM(W66:W67)","v":32},{"$f":"SUM(X66:X67)","v":0},{"$f":"SUM(Y66:Y67)","v":32},null,{"$f":"SUM(AA66:AA67)","v":0},null,{"$f":"SUM(AC66:AC67)","v":30},{"$f":"SUM(AD66:AD67)","v":60},{"$f":"SUM(AE66:AE67)","v":0},{"$f":"SUM(AF66:AF67)","v":60},null,{"$f":"SUM(AH66:AH67)","v":0},null,{"$f":"SUM(AJ66:AJ67)","v":24},{"$f":"SUM(AK66:AK67)","v":48},{"$f":"SUM(AL66:AL67)","v":0},{"$f":"SUM(AM66:AM67)","v":48},null,{"$f":"SUM(AO66:AO67)","v":0},null,{"$f":"SUM(AQ66:AQ67)","v":40},{"$f":"SUM(AR66:AR67)","v":80},{"$f":"SUM(AS66:AS67)","v":0},{"$f":"SUM(AT66:AT67)","v":80},null,{"$f":"SUM(AV66:AV67)","v":0},null,{"$f":"SUM(AX66:AX67)","v":48},{"$f":"SUM(AY66:AY67)","v":96},{"$f":"SUM(AZ66:AZ67)","v":0},{"$f":"SUM(BA66:BA67)","v":96},null,{"$f":"SUM(BC66:BC67)","v":0},null,{"$f":"SUM(BE66:BE67)","v":60},{"$f":"SUM(BF66:BF67)","v":120},{"$f":"SUM(BG66:BG67)","v":0},{"$f":"SUM(BH66:BH67)","v":120},null,{"$f":"SUM(BJ66:BJ67)","v":0},null,{"$f":"SUM(BL66:BL67)","v":48},{"$f":"SUM(BM66:BM67)","v":96},{"$f":"SUM(BN66:BN67)","v":0},{"$f":"SUM(BO66:BO67)","v":96},null,{"$f":"SUM(BQ66:BQ67)","v":0},null,{"$f":"SUM(BS66:BS67)","v":76},{"$f":"SUM(BT66:BT67)","v":152},{"$f":"SUM(BU66:BU67)","v":0},{"$f":"SUM(BV66:BV67)","v":152},null,{"$f":"SUM(BX66:BX67)","v":0},null,null,null,null,null,null,null,null,null,null,null,null,null,null,null,null,null,null,null,null,null,null,null,null,null,null,null,null,null,null,null,null,null,null,null,null,null,null,null,null,null,null,null,null,null,null,null,null,null,null,null,null,null,null,null,null,null,{"$f":"SUM(ED66:ED67)","v":684},{"$f":"SUM(EE66:EE67)","v":0}]
["УП 01","Оркестр (ансамбль)","гр.",null,null,56,null,null,null,123478,null,{"$f":"N66+P66","v":921},null,{"$f":"V66+AC66+AJ66+AQ66+AX66+BE66+BL66+BS66","v":307},{"$f":"V66+AC66+AJ66+AQ66+AX66+BE66+BL66+BS66","v":307},614,0,614,null,null,null,16,32,null,32,null,null,null,30,60,null,60,null,null,null,24,48,null,48,null,null,null,40,80,null,80,null,null,null,48,96,null,96,null,null,null,60,120,null,120,null,null,null,32,64,null,64,null,null,null,57,114,null,114,null,null,null,null,null,null,null,null,null,null,null,null,null,null,null,null,null,null,null,null,null,null,null,null,null,null,null,null,null,null,null,null,null,null,null,null,null,null,null,null,null,null,null,null,null,null,null,null,null,null,null,null,null,null,null,null,null,null,null,614]
["УП 02.","Педагогическая работа","инд",null,null,null,null,null,null,78,null,{"$f":"N67+P67","v":105},null,{"$f":"V67+AC67+AJ67+AQ67+AX67+BE67+BL67+BS67","v":35},35,70,0,70,null,null,null,null,null,null,null,null,null,null,null,null,null,null,null,null,null,null,null,null,null,null,null,null,null,null,null,null,null,null,null,null,null,null,null,null,null,null,null,null,null,null,null,null,"48",16,32,null,32,null,null,57,19,38,null,38,null,null,null,null,null,null,null,null,null,null,null,null,null,null,null,null,null,null,null,null,null,null,null,null,null,null,null,null,null,null,null,null,null,null,null,null,null,null,null,null,null,null,null,null,null,null,null,null,null,null,null,null,null,null,null,null,null,null,null,70]
["ПП","Производственная (по профилю специальности) практика",null,null,null,null,null,null,null,null,null,null,null,"час",null,{"$f":"P69+P70","v":180},"нед",{"$f":"R69+R70","v":5},null,null,null,null,{"$f":"SUM(W69:W70)","v":20},null,{"$f":"SUM(Y69:Y70)","v":20},null,null,null,null,{"$f":"SUM(AD69:AD70)","v":25},null,{"$f":"SUM(AF69:AF70)","v":25},null,null,null,null,{"$f":"SUM(AK69:AK70)","v":20},null,{"$f":"SUM(AM69:AM70)","v":20},null,null,null,null,{"$f":"SUM(AR69:AR70)","v":25},null,{"$f":"SUM(AT69:AT70)","v":25},null,null,null,null,{"$f":"SUM(AY69:AY70)","v":20},null,{"$f":"SUM(BA69:BA70)","v":20},null,null,null,null,{"$f":"SUM(BF69:BF70)","v":25},null,{"$f":"SUM(BH69:BH70)","v":25},null,null,null,null,{"$f":"SUM(BM69:BM70)","v":20},null,{"$f":"SUM(BO69:BO70)","v":20},null,null,null,null,{"$f":"SUM(BT69:BT70)","v":25},null,{"$f":"SUM(BV69:BV70)","v":25},null,null,"час",null,null,"нед",null,null,null,"час",null,null,"нед",null,null,null,"час",null,null,"нед",null,null,null,"час",null,null,"нед",null,null,null,"час",null,null,"нед",null,null,null,"час",null,null,"нед",null,null,null,"час",null,null,"нед",null,null,null,"час",null,null,"нед"]
["ПП.01","Исполнительская (по профилю специальности)",null,null,null,null,null,null,null,null,null,null,null,"час",null,{"$f":"W69+AD69+AK69+AR69+AY69+BF69+BM69+BT69","v":144},"нед",4,null,null,null,null,16,null,16,null,null,null,null,20,null,20,null,null,null,null,16,null,16,null,null,null,null,20,null,20,null,null,null,null,16,null,16,null,null,null,null,20,null,20,null,null,null,null,16,null,16,null,null,null,null,20,null,20]
["ПП.02","Педагогическая практика",null,null,null,null,null,null,null,null,null,null,null,"час",null,{"$f":"W70+AD70+AK70+AR70+AY70+BF70+BM70+BT70","v":36},"нед",1,null,null,null,null,4,null,4,null,null,null,null,5,null,5,null,null,null,null,4,null,4,null,null,null,null,5,null,5,null,null,null,null,4,null,4,null,null,null,null,5,null,5,null,null,null,null,4,null,4,null,null,null,null,5,null,5]
["ПДП.00","Преддипломная практика",null,null,null,null,null,null,null,null,null,null,null,"час",null,{"$f":"W71+AD71+AK71+AR71+AY71+BF71+BM71+BT71","v":36},"нед",1,null,null,null,null,null,null,null,null,null,null,null,null,null,null,null,null,null,null,null,null,null,null,null,null,null,null,null,null,null,null,null,null,null,null,null,null,null,null,null,null,null,null,null,null,null,null,16,null,16,null,null,null,null,20,null,20]
["ГИА.00","Государственная (итоговая) аттестация",null,null,null,null,null,null,null,null,null,null,null,null,null,null,"нед",4,null,null,null,null,null,null,null,null,null,null,null,null,null,null,null,null,null,null,null,null,null,null,null,null,null,null,null,null,null,null,null,null,null,null,null,null,null,null,null,null,null,null,null,null,null,null,null,null,null,null,null,null,null,null,"нед",4,null,null,null,null,null,"нед",null,null,null,null,null,null,"нед",null,null,null,null,null,null,"нед",null,null,null,null,null,null,"нед",null,null,null,null,null,null,"нед",null,null,null,null,null,null,"нед",null,null,null,null,null,null,"нед",null,null,null,null,null,null,"нед"]
["ГИА.01","Подготовка выпускной квалификационной работы",null,null,null,null,null,null,null,null,null,null,null,null,null,null,"нед",1,null,null,null,null,null,null,null,null,null,null,null,null,null,null,null,null,null,null,null,null,null,null,null,null,null,null,null,null,null,null,null,null,null,null,null,null,null,null,null,null,null,null,null,null,null,null,null,null,null,null,null,null,null,null,"нед",1,null,null,null,null,null,"нед",null,null,null,null,null,null,"нед",null,null,null,null,null,null,"нед",null,null,null,null,null,null,"нед",null,null,null,null,null,null,"нед",null,null,null,null,null,null,"нед",null,null,null,null,null,null,"нед",null,null,null,null,null,null,"нед"]
["ГИА.02","Защита выпускной квалификационной работы",null,null,null,null,null,null,null,null,null,null,null,null,null,null,"нед",1,null,null,null,null,null,null,null,null,null,null,null,null,null,null,null,null,null,null,null,null,null,null,null,null,null,null,null,null,null,null,null,null,null,null,null,null,null,null,null,null,null,null,null,null,null,null,null,null,null,null,null,null,null,null,"нед",1,null,null,null,null,null,"нед",null,null,null,null,null,null,"нед",null,null,null,null,null,null,"нед",null,null,null,null,null,null,"нед",null,null,null,null,null,null,"нед",null,null,null,null,null,null,"нед",null,null,null,null,null,null,"нед",null,null,null,null,null,null,"нед"]
["ГИА.03","Подготовка к государственным экзаменам",null,null,null,null,null,null,null,null,null,null,null,null,null,null,"нед",1,null,null,null,null,null,null,null,null,null,null,null,null,null,null,null,null,null,null,null,null,null,null,null,null,null,null,null,null,null,null,null,null,null,null,null,null,null,null,null,null,null,null,null,null,null,null,null,null,null,null,null,null,null,null,"нед",1,null,null,null,null,null,"нед",null,null,null,null,null,null,"нед",null,null,null,null,null,null,"нед",null,null,null,null,null,null,"нед",null,null,null,null,null,null,"нед",null,null,null,null,null,null,"нед",null,null,null,null,null,null,"нед",null,null,null,null,null,null,"нед"]
["ГИА.04","Проведение государственных экзаменов",null,null,null,null,null,null,null,null,null,null,null,null,null,null,"нед",1,null,null,null,null,null,null,null,null,null,null,null,null,null,null,null,null,null,null,null,null,null,null,null,null,null,null,null,null,null,null,null,null,null,null,null,null,null,null,null,null,null,null,null,null,null,null,null,null,null,null,null,null,null,null,"нед",1,null,null,null,null,null,"нед",null,null,null,null,null,null,"нед",null,null,null,null,null,null,"нед",null,null,null,null,null,null,"нед",null,null,null,null,null,null,"нед",null,null,null,null,null,null,"нед",null,null,null,null,null,null,"нед",null,null,null,null,null,null,"нед"]
[null,"ВСЕГО ПО ДИСЦИПЛИНАМ И МДК",null,29,{"$f":"E9+E27+E34+E44+E55+E65","v":{"$error":"#REF!"}},27,null,null,null,96,null,{"$f":"SUM(L9,L27,L34,L44,L55,L65)","v":7722},null,{"$f":"SUM(N9,N27,N34,N44,N55,N65)","v":2574},null,{"$f":"SUM(P9,P27,P34,P44,P55,P65)","v":5148},{"$f":"SUM(Q9,Q27,Q34,Q44,Q55,Q65)","v":2347},{"$f":"SUM(R9,R27,R34,R44,R55,R65)","v":2801},null,null,null,null,null,null,null,null,null,null,null,null,null,null,null,null,null,null,null,null,null,null,null,null,null,null,null,null,null,null,null,null,null,null,null,null,null,null,null,null,null,null,null,null,null,null,null,null,null,null,null,null,null,null,null,null,null,null,null,null,null,null,null,null,null,null,null,null,null,null,null,null,null,null,null,null,null,null,null,null,null,null,null,null,null,null,null,null,null,null,null,null,null,null,null,null,null,null,null,null,null,null,null,null,null,null,null,null,null,null,null,null,null,null,null,4572,576]
[null,"Экзаменов",null,null,null,null,null,null,null,null,null,null,null,null,null,null,null,null,null,null,"1",null,null,1,null,null,null,5,null,null,5,null,null,null,3,null,null,3,null,null,null,5,null,null,5,null,null,null,3,null,null,{"$f":"SUM(IF(IFERROR(MID(#REF!,SEARCH(5,#REF!),1),0)=\"5\",1,0),IF(IFERROR(MID(#REF!,SEARCH(5,#REF!),1),0)=\"5\",1,0),IF(IFERROR(MID(D28:D32,SEARCH(5,D28:D32),1),0)=\"5\",1,0),IF(IFERROR(MID(D35:D42,SEARCH(5,D35:D42),1),0)=\"5\",1,0),IF(IFERROR(MID(D45:D54,SEARCH(5,D45:D54),1),0)=\"5\",1,0),IF(IFERROR(MID(D56:D64,SEARCH(5,D56:D64),1),0)=\"5\",1,0),IF(IFERROR(MID(D66:D67,SEARCH(5,D66:D67),1),0)=\"5\",1,0))","v":3},null,null,null,4,null,null,5,null,null,null,4,null,null,{"$f":"SUM(IF(IFERROR(MID(#REF!,SEARCH(7,#REF!),1),0)=\"7\",1,0),IF(IFERROR(MID(#REF!,SEARCH(7,#REF!),1),0)=\"7\",1,0),IF(IFERROR(MID(D28:D32,SEARCH(7,D28:D32),1),0)=\"7\",1,0),IF(IFERROR(MID(D35:D42,SEARCH(7,D35:D42),1),0)=\"7\",1,0),IF(IFERROR(MID(D45:D54,SEARCH(7,D45:D54),1),0)=\"7\",1,0),IF(IFERROR(MID(D56:D64,SEARCH(7,D56:D64),1),0)=\"7\",1,0),IF(IFERROR(MID(D66:D67,SEARCH(7,D66:D67),1),0)=\"7\",1,0))","v":4},null,null,null,3,null,null,{"$f":"SUM(IF(IFERROR(MID(#REF!,SEARCH(8,#REF!),1),0)=\"8\",1,0),IF(IFERROR(MID(#REF!,SEARCH(8,#REF!),1),0)=\"8\",1,0),IF(IFERROR(MID(D28:D32,SEARCH(8,D28:D32),1),0)=\"8\",1,0),IF(IFERROR(MID(D35:D42,SEARCH(8,D35:D42),1),0)=\"8\",1,0),IF(IFERROR(MID(D45:D54,SEARCH(8,D45:D54),1),0)=\"8\",1,0),IF(IFERROR(MID(D56:D64,SEARCH(8,D56:D64),1),0)=\"8\",1,0),IF(IFERROR(MID(D66:D67,SEARCH(8,D66:D67),1),0)=\"8\",1,0))","v":3}]
[null,"Зачётов",null,null,null,null,null,null,null,null,null,null,null,null,null,null,null,null,null,null,1,null,null,{"$f":"SUM(IF(IFERROR(MID(#REF!,SEARCH(1,#REF!),1),0)=\"1\",1,0),IF(IFERROR(MID(#REF!,SEARCH(1,#REF!),1),0)=\"1\",1,0),IF(IFERROR(MID(E28:E32,SEARCH(1,E28:E32),1),0)=\"1\",1,0),IF(IFERROR(MID(E35:E42,SEARCH(1,E35:E42),1),0)=\"1\",1,0),IF(IFERROR(MID(E45:E54,SEARCH(1,E45:E54),1),0)=\"1\",1,0),IF(IFERROR(MID(E56:E64,SEARCH(1,E56:E64),1),0)=\"1\",1,0),IF(IFERROR(MID(E66:E67,SEARCH(1,E66:E67),1),0)=\"1\",1,0))","v":0},1,null,null,1,null,1,{"$f":"SUM(IF(IFERROR(MID(#REF!,SEARCH(2,#REF!),1),0)=\"2\",1,0),IF(IFERROR(MID(#REF!,SEARCH(2,#REF!),1),0)=\"2\",1,0),IF(IFERROR(MID(E28:E32,SEARCH(2,E28:E32),1),0)=\"2\",1,0),IF(IFERROR(MID(E35:E42,SEARCH(2,E35:E42),1),0)=\"2\",1,0),IF(IFERROR(MID(E45:E54,SEARCH(2,E45:E54),1),0)=\"2\",1,0),IF(IFERROR(MID(E56:E64,SEARCH(2,E56:E64),1),0)=\"2\",1,0),IF(IFERROR(MID(E66:E67,SEARCH(2,E66:E67),1),0)=\"2\",1,0))","v":0},null,null,null,1,null,null,1,null,null,null,1,null,null,1,null,null,null,1,null,null,{"$f":"SUM(IF(IFERROR(MID(#REF!,SEARCH(5,#REF!),1),0)=\"5\",1,0),IF(IFERROR(MID(#REF!,SEARCH(5,#REF!),1),0)=\"5\",1,0),IF(IFERROR(MID(E28:E32,SEARCH(5,E28:E32),1),0)=\"5\",1,0),IF(IFERROR(MID(E35:E42,SEARCH(5,E35:E42),1),0)=\"5\",1,0),IF(IFERROR(MID(E45:E54,SEARCH(5,E45:E54),1),0)=\"5\",1,0),IF(IFERROR(MID(E56:E64,SEARCH(5,E56:E64),1),0)=\"5\",1,0),IF(IFERROR(MID(E66:E67,SEARCH(5,E66:E67),1),0)=\"5\",1,0))","v":1},null,null,null,1,null,null,{"$f":"SUM(IF(IFERROR(MID(#REF!,SEARCH(6,#REF!),1),0)=\"6\",1,0),IF(IFERROR(MID(#REF!,SEARCH(6,#REF!),1),0)=\"6\",1,0),IF(IFERROR(MID(E28:E32,SEARCH(6,E28:E32),1),0)=\"6\",1,0),IF(IFERROR(MID(E35:E42,SEARCH(6,E35:E42),1),0)=\"6\",1,0),IF(IFERROR(MID(E45:E54,SEARCH(6,E45:E54),1),0)=\"6\",1,0),IF(IFERROR(MID(E56:E64,SEARCH(6,E56:E64),1),0)=\"6\",1,0),IF(IFERROR(MID(E66:E67,SEARCH(6,E66:E67),1),0)=\"6\",1,0))","v":1},null,null,null,1,null,null,{"$f":"SUM(IF(IFERROR(MID(#REF!,SEARCH(7,#REF!),1),0)=\"7\",1,0),IF(IFERROR(MID(#REF!,SEARCH(7,#REF!),1),0)=\"7\",1,0),IF(IFERROR(MID(E28:E32,SEARCH(7,E28:E32),1),0)=\"7\",1,0),IF(IFERROR(MID(E35:E42,SEARCH(7,E35:E42),1),0)=\"7\",1,0),IF(IFERROR(MID(E45:E54,SEARCH(7,E45:E54),1),0)=\"7\",1,0),IF(IFERROR(MID(E56:E64,SEARCH(7,E56:E64),1),0)=\"7\",1,0),IF(IFERROR(MID(E66:E67,SEARCH(7,E66:E67),1),0)=\"7\",1,0))","v":1},null,null,null,1,null,null,{"$f":"SUM(IF(IFERROR(MID(#REF!,SEARCH(8,#REF!),1),0)=\"8\",1,0),IF(IFERROR(MID(#REF!,SEARCH(8,#REF!),1),0)=\"8\",1,0),IF(IFERROR(MID(E28:E32,SEARCH(8,E28:E32),1),0)=\"8\",1,0),IF(IFERROR(MID(E35:E42,SEARCH(8,E35:E42),1),0)=\"8\",1,0),IF(IFERROR(MID(E45:E54,SEARCH(8,E45:E54),1),0)=\"8\",1,0),IF(IFERROR(MID(E56:E64,SEARCH(8,E56:E64),1),0)=\"8\",1,0),IF(IFERROR(MID(E66:E67,SEARCH(8,E66:E67),1),0)=\"8\",1,0))","v":1}]
[null,"Дифференицрованных зачётов",null,null,null,null,null,null,null,null,null,null,null,null,null,null,null,null,null,null,"1",null,null,{"$f":"SUM(IF(IFERROR(MID(#REF!,SEARCH(1,#REF!),1),0)=\"1\",1,0),IF(IFERROR(MID(#REF!,SEARCH(1,#REF!),1),0)=\"1\",1,0),IF(IFERROR(MID(F28:I32,SEARCH(1,F28:I32),1),0)=\"1\",1,0),IF(IFERROR(MID(F35:F42,SEARCH(1,F35:F42),1),0)=\"1\",1,0),IF(IFERROR(MID(F45:I54,SEARCH(1,F45:F54),1),0)=\"1\",1,0),IF(IFERROR(MID(F56:F64,SEARCH(1,F56:G64),1),0)=\"1\",1,0),IF(IFERROR(MID(F66:F67,SEARCH(1,F66:F67),1),0)=\"1\",1,0))","v":1},null,null,null,3,null,null,3,null,null,null,1,null,null,1,null,null,null,5,null,null,4,null,null,null,1,null,null,{"$f":"SUM(IF(IFERROR(MID(#REF!,SEARCH(5,#REF!),1),0)=\"5\",1,0),IF(IFERROR(MID(#REF!,SEARCH(5,#REF!),1),0)=\"5\",1,0),IF(IFERROR(MID(F28:F32,SEARCH(5,F28:F32),1),0)=\"5\",1,0),IF(IFERROR(MID(F35:I42,SEARCH(5,F35:I42),1),0)=\"5\",1,0),IF(IFERROR(MID(F45:F54,SEARCH(5,F45:F54),1),0)=\"5\",1,0),IF(IFERROR(MID(F56:F64,SEARCH(5,F56:F64),1),0)=\"5\",1,0),IF(IFERROR(MID(F66:F67,SEARCH(5,F66:F67),1),0)=\"5\",1,0))","v":2},null,null,null,3,null,null,1,null,null,null,2,null,null,{"$f":"SUM(IF(IFERROR(MID(#REF!,SEARCH(7,#REF!),1),0)=\"7\",1,0),IF(IFERROR(MID(#REF!,SEARCH(7,#REF!),1),0)=\"7\",1,0),IF(IFERROR(MID(F28:F32,SEARCH(7,F28:F32),1),0)=\"7\",1,0),IF(IFERROR(MID(F35:I42,SEARCH(7,F35:I42),1),0)=\"7\",1,0),IF(IFERROR(MID(F45:F54,SEARCH(7,F45:F54),1),0)=\"7\",1,0),IF(IFERROR(MID(F56:F64,SEARCH(7,F56:F64),1),0)=\"7\",1,0),IF(IFERROR(MID(F66:F67,SEARCH(7,F66:F67),1),0)=\"7\",1,0))","v":2},null,null,null,6,null,null,5]

{"sheet":"Кабинеты","index":3,"n_rows":14,"n_cols":3,"rows_kept":14,"cut":false,"hidden":false,"merged":[]}
[null,"№","Наименование"]
[null,"1","Кабинеты:  русского языка и литературы"]
[null,"2","математики и информатики;"]
[null,"3","истории, географии и обществознания;"]
[null,"4","гуманитарных и социально-экономических дисциплин;"]
[null,5,"мировой художественной культуры;"]
[null,6,"музыкально-теоретических дисциплин;"]
[null,7,"музыкальной литературы."]
[null,8,"Учебные классы:  для групповых и индивидуальных занятий;"]
[null,9,"для проведения оркестровых и ансамблевых занятий;"]
[null,10,"для занятий по междисциплинарному курсу «Оркестровый класс, изучение родственных инструментов» со специализированным оборудованием;"]
[null,11,"для занятий по междисциплинарному курсу «Дирижирование и чтение оркестровых партитур», оснащенные зеркалами и двумя роялями."]
[null,12,"Спортивный комплекс:   спортивный зал; место для стрельбы.  "]
[null,13,"Залы:  концертный зал от 100 посадочных мест с концертными роялями, пультами и звукотехническим оборудованием;   малый концертный зал от 30 посадочных мест с концертным роялем,   читальный зал с выходом в сеть"]

{"sheet":"Лист1","index":4,"n_rows":0,"n_cols":0,"rows_kept":0,"cut":false,"hidden":false,"merged":[]}